ServiceArea,Service,ResponsibleUnit,ExpensesType,Narrative,DatePaid,Invoice,TransactionReference,NetAmount,CapitalRevenue,SupplierID,SupplierName,Postcode,UnrecoveredVAT
Director Of Environment,Grounds Maintenance,Grounds Maintenance,Vehicle R&M - External,TRACTOR SERVICE AND REPAIR,26/04/2022,REDACTED INVOICE NUMBER,158550,1700.69,Revenue,29027,A&D Colyer And Sons Ltd,CM2 8AX,0
Director Of Environment,Depot Management & Admin,Depot Management & Admin,R&M Bldgs - General,PEST CONTROL - DEPOT,26/04/2022,REDACTED INVOICE NUMBER,158522,75,Revenue,29,A1 Environmental Pest Control,CM13 1LH,0
Director Of Environment,Parking,Parking Services,Agency Staff,PROJECT MANAGEMENT SUPPORT,05/04/2022,REDACTED INVOICE NUMBER,158303,564.1,Revenue,75,Adecco Uk Ltd,WD6 1WD,0
Director Of Environment,Parking,Parking Services,Agency Staff,PROJECT MANAGEMENT SUPPORT,05/04/2022,REDACTED INVOICE NUMBER,158304,587.93,Revenue,75,Adecco Uk Ltd,WD6 1WD,0
Director Of Environment,Parking,Parking Services,Agency Staff,PROJECT MANAGEMENT SUPPORT,05/04/2022,REDACTED INVOICE NUMBER,158302,468.76,Revenue,75,Adecco Uk Ltd,WD6 1WD,0
Director Of Environment,Depot Management & Admin,Depot Management & Admin,Agency Staff,PROJECT MANAGEMENT SUPPORT,26/04/2022,REDACTED INVOICE NUMBER,158881,299.33,Revenue,75,Adecco Uk Ltd,WD6 1WD,0
Director Of Environment,Parking,Parking Services,Agency Staff,PROJECT MANAGEMENT SUPPORT,26/04/2022,REDACTED INVOICE NUMBER,158881,299.33,Revenue,75,Adecco Uk Ltd,WD6 1WD,0
Capex Director Of C Resources,Asset Management,Brentwood Leisure Centre,Enhancements,BRENTWOOD CENTRE BARRIER REPAIRS,29/04/2022,REDACTED INVOICE NUMBER,158689,704.7,Capital,128,All Ways Wired Ltd,CM13 1PU,0
Director Corporate Resources,Asset Management,Asset Management,R&M Bldgs - General,DOOR REPAIRS - MERRYMEADE HOUSE,29/04/2022,REDACTED INVOICE NUMBER,158687,62,Revenue,128,All Ways Wired Ltd,CM13 1PU,0
Director Corporate Resources,Asset Management,Asset Management,R&M Bldgs - General,HAND DRYER REPAIRS. HIGH ST. TOILETS,29/04/2022,REDACTED INVOICE NUMBER,158688,538.6,Revenue,128,All Ways Wired Ltd,CM13 1PU,0
Capex Director Of Environment,Corporate Services,King George'S Redevelopment,Enhancements,KGPF Construction,26/04/2022,REDACTED INVOICE NUMBER,158536,205099.16,Capital,27165,Alliance Leisure Services Limited,BS32 4AQ,0
Balance Sheet,Balance Sheet,Balance Sheet,Insurance Account,CLAIM CONTROL - 22/23,08/04/2022,REDACTED INVOICE NUMBER,155751,137.79,Revenue,24309,Alphatec Software Ltd (Dd),NN7 4GS,0
Hra Expenditure,Repairs And Maintenance,Planned Maintenance,R&M Other - Sewerage,INVESTIGATE ISSUES WITH SEWAGE PIT,08/04/2022,REDACTED INVOICE NUMBER,158264,2470,Revenue,28374,Amelio Utilities (Gloucester) Ltd,GL1 4JJ,0
Hra Expenditure,Repairs And Maintenance,Planned Maintenance,R&M Other - Sewerage,INVESTIGATE ISSUES WITH SEWAGE PIT,14/04/2022,REDACTED INVOICE NUMBER,158263,1750,Revenue,28374,Amelio Utilities (Gloucester) Ltd,GL1 4JJ,0
Balance Sheet,Balance Sheet,Balance Sheet,Homes For Ukraine,HOMES FOR UKRAINE,29/04/2022,REDACTED INVOICE NUMBER,159269,200,Revenue,216910P,REDACTED PERSONAL DATA,REDACTED,0
Capex Director Of Environment,Corporate Services,King George'S Redevelopment,Contracted Services,KING GEORGES PAVILLION DEVELOPMENT,14/04/2022,REDACTED INVOICE NUMBER,156981,4086.34,Capital,28277,Ark Consultancy Ltd,B18 6DS,0
Director Of Planning & Economy,Planning Development Managemt,Planning Development Managemt,Other Professional Fees,WESTBURY ROAD CAR PARK,19/04/2022,REDACTED INVOICE NUMBER,157414,4500,Revenue,28277,Ark Consultancy Ltd,B18 6DS,0
Director Of Planning & Economy,Planning Development Managemt,Planning Development Managemt,Other Fees & Service,PLANNING VIABILITY. DE ROUGEMONT MANOR,26/04/2022,REDACTED INVOICE NUMBER,158345,2719,Revenue,28277,Ark Consultancy Ltd,B18 6DS,0
Capex Director Of Housing,Housing - Affordable Housing,Garage Site Development,Enhancements,Housing Strategy Support - Mar '22,29/04/2022,REDACTED INVOICE NUMBER,158870,10500,Capital,28277,Ark Consultancy Ltd,B18 6DS,0
Capex Director Of C Resources,Asset Management,Asset Management Strategy,Enhancements,King George Playing Field,29/04/2022,REDACTED INVOICE NUMBER,158220,6050,Capital,220,Ashe Green Civil Engineers Ltd,CM3 3PF,0
Director Of Environment,Vehicle Fleet Management,Vehicle Fleet Management,Vehicle Replacement Parts,VEHICLE REPAIRS,26/04/2022,REDACTED INVOICE NUMBER,157407,11.5,Revenue,26506,Asm Truck Diagnostics Ltd,SS14 3EU,0
Director Of Environment,Vehicle Fleet Management,Vehicle Fleet Management,Vehicle R&M - External,CREDIT NOTE,26/04/2022,REDACTED INVOICE NUMBER,158437,-46,Revenue,26506,Asm Truck Diagnostics Ltd,SS14 3EU,0
Director Of Environment,Vehicle Fleet Management,Vehicle Fleet Management,Vehicle R&M - External,VEHICLE REPAIRS,26/04/2022,REDACTED INVOICE NUMBER,157407,445.77,Revenue,26506,Asm Truck Diagnostics Ltd,SS14 3EU,0
Director Of Environment,Vehicle Fleet Management,Vehicle Fleet Management,Purchases - General Equipment,VEHICLE REPAIRS,29/04/2022,REDACTED INVOICE NUMBER,158112,40,Revenue,26506,Asm Truck Diagnostics Ltd,SS14 3EU,0
Director Of Environment,Vehicle Fleet Management,Vehicle Fleet Management,Vehicle Replacement Parts,VEHICLE REPAIRS,29/04/2022,REDACTED INVOICE NUMBER,158113,71.25,Revenue,26506,Asm Truck Diagnostics Ltd,SS14 3EU,0
Director Of Environment,Vehicle Fleet Management,Vehicle Fleet Management,Vehicle R&M - External,VEHICLE REPAIRS,29/04/2022,REDACTED INVOICE NUMBER,158113,340,Revenue,26506,Asm Truck Diagnostics Ltd,SS14 3EU,0
Director Of Environment,Vehicle Fleet Management,Vehicle Fleet Management,Vehicle R&M - External,VEHICLE REPAIRS,29/04/2022,REDACTED INVOICE NUMBER,158112,300,Revenue,26506,Asm Truck Diagnostics Ltd,SS14 3EU,0
Director Of Environment,Vehicle Fleet Management,Vehicle Fleet Management,Vehicle R&M - External,VEHICLE REPAIRS,29/04/2022,REDACTED INVOICE NUMBER,158110,340,Revenue,26506,Asm Truck Diagnostics Ltd,SS14 3EU,0
Director Of Environment,Vehicle Fleet Management,Vehicle Fleet Management,Vehicle R&M - External,VEHICLE REPAIRS,29/04/2022,REDACTED INVOICE NUMBER,158111,340,Revenue,26506,Asm Truck Diagnostics Ltd,SS14 3EU,0
Director Of Environment,Vehicle Fleet Management,Vehicle Fleet Management,Vehicle R&M - External,VEHICLE REPAIRS,29/04/2022,REDACTED INVOICE NUMBER,158114,340,Revenue,26506,Asm Truck Diagnostics Ltd,SS14 3EU,0
Capex Director Of Housing,Housing - Hra,Asbestos,Enhancements,COMMERCIAL GAS,08/04/2022,REDACTED INVOICE NUMBER,158227,1611.12,Capital,27759,Axis Europe,E15 4PN,0
Capex Director Of Housing,Housing - Hra,Balconies,Enhancements,VOIDS - FEB '22,08/04/2022,REDACTED INVOICE NUMBER,156551,26146.91,Capital,27759,Axis Europe,E15 4PN,0
Capex Director Of Housing,Housing - Hra,Boiler/ Heating  Replacement,Enhancements,COMMERCIAL GAS,08/04/2022,REDACTED INVOICE NUMBER,158227,25814.12,Capital,27759,Axis Europe,E15 4PN,0
Capex Director Of Housing,Housing - Hra,Housing Stock - Doors,Enhancements,PPG EXCLUSIONS,08/04/2022,REDACTED INVOICE NUMBER,158223,931.95,Capital,27759,Axis Europe,E15 4PN,0
Capex Director Of Housing,Housing - Hra,Housing Stock Re-Roofing,Enhancements,PPG EXCLUSIONS,08/04/2022,REDACTED INVOICE NUMBER,158223,1122.42,Capital,27759,Axis Europe,E15 4PN,0
Capex Director Of Housing,Housing - Hra,Housing Stock Rewiring,Enhancements,EICR,08/04/2022,REDACTED INVOICE NUMBER,158231,36898.61,Capital,27759,Axis Europe,E15 4PN,0
Capex Director Of Housing,Housing - Hra,Housing Stock - Water,Enhancements,WATER HYGIENE PROG,08/04/2022,REDACTED INVOICE NUMBER,158230,23838.93,Capital,27759,Axis Europe,E15 4PN,0
Capex Director Of Housing,Housing - Hra,Major Voids,Enhancements,VOIDS,08/04/2022,REDACTED INVOICE NUMBER,158225,"10,467.16",Capital,27759,Axis Europe,E15 4PN,0
Hra Expenditure,Repairs And Maintenance,Planned Maintenance,R&M Fix & Fit - Electrical,EMERGENCY LIGHTING,08/04/2022,REDACTED INVOICE NUMBER,158232,2308,Revenue,27759,Axis Europe,E15 4PN,0
Hra Expenditure,Repairs And Maintenance,Planned Maintenance,R&M Fix & Fit - Tanks,WATER HYGIENE PROG,08/04/2022,REDACTED INVOICE NUMBER,158230,1133.93,Revenue,27759,Axis Europe,E15 4PN,0
Hra Expenditure,Repairs And Maintenance,Responsive Repairs Management,Other Professional Fees,Variable profit for VP Q3,08/04/2022,REDACTED INVOICE NUMBER,158200,22564.52,Revenue,27759,Axis Europe,E15 4PN,0
Hra Expenditure,Repairs And Maintenance,Responsive Repairs Management,R&M Bldgs - General,PPG EXCLUSIONS,08/04/2022,REDACTED INVOICE NUMBER,158223,46.42,Revenue,27759,Axis Europe,E15 4PN,0
Hra Expenditure,Repairs And Maintenance,Responsive Repairs Management,R&M Fix & Fit - Electrical,EICR,08/04/2022,REDACTED INVOICE NUMBER,158231,5777.69,Revenue,27759,Axis Europe,E15 4PN,0
Hra Expenditure,Repairs And Maintenance,Responsive Repairs Management,R&M Fix & Fit - Gas Repairs,COMMERCIAL GAS,08/04/2022,REDACTED INVOICE NUMBER,158227,2178.12,Revenue,27759,Axis Europe,E15 4PN,0
Hra Expenditure,Repairs And Maintenance,Responsive Repairs Management,R&M Fix & Fit - Gas Repairs,GAS EXCLUSIONS,08/04/2022,REDACTED INVOICE NUMBER,158226,1026.87,Revenue,27759,Axis Europe,E15 4PN,0
Hra Expenditure,Repairs And Maintenance,Responsive Void Repairs,R&M Bldgs - Asbestos,VOIDS,08/04/2022,REDACTED INVOICE NUMBER,158225,3195.31,Revenue,27759,Axis Europe,E15 4PN,0
Hra Expenditure,Repairs And Maintenance,Responsive Void Repairs,R&M Bldgs - Asbestos,VOIDS - FEB '22,08/04/2022,REDACTED INVOICE NUMBER,156551,1070.8,Revenue,27759,Axis Europe,E15 4PN,0
Hra Expenditure,Repairs And Maintenance,Responsive Void Repairs,R&M Bldgs - General,VOIDS,08/04/2022,REDACTED INVOICE NUMBER,158225,43440.53,Revenue,27759,Axis Europe,E15 4PN,0
Hra Expenditure,Repairs And Maintenance,Responsive Void Repairs,R&M Bldgs - General,VOIDS - FEB '22,08/04/2022,REDACTED INVOICE NUMBER,156551,16518.34,Revenue,27759,Axis Europe,E15 4PN,0
Hra Expenditure,Repairs And Maintenance,Responsive Void Repairs,R&M Bldgs - Ppp,VOIDS,08/04/2022,REDACTED INVOICE NUMBER,158225,"9,310.00",Revenue,27759,Axis Europe,E15 4PN,0
Hra Expenditure,Repairs And Maintenance,Responsive Void Repairs,R&M Bldgs - Ppp,VOIDS - FEB '22,08/04/2022,REDACTED INVOICE NUMBER,156551,5390,Revenue,27759,Axis Europe,E15 4PN,0
Capex Director Of Housing,Housing - Hra,Central Heating,Enhancements,ASBESTOS REMOVAL - THE GABLES,26/04/2022,REDACTED INVOICE NUMBER,158059,57339.55,Capital,27759,Axis Europe,E15 4PN,0
Capex Director Of Housing,Housing - Affordable Housing,Brookfield Project,Enhancements,COMMUNAL - MAR '22,29/04/2022,REDACTED INVOICE NUMBER,158224,1012.7,Capital,27759,Axis Europe,E15 4PN,0
Capex Director Of Housing,Housing - Hra,Boiler/ Heating  Replacement,Enhancements,BOILER INSTALLS,29/04/2022,REDACTED INVOICE NUMBER,158228,130651.65,Capital,27759,Axis Europe,E15 4PN,0
Capex Director Of Housing,Housing - Hra,Central Heating,Enhancements,HEATING INSTALL. VICTORIA CRT / OLDFIELD,29/04/2022,REDACTED INVOICE NUMBER,157897,121595.92,Capital,27759,Axis Europe,E15 4PN,0
Capex Director Of Housing,Housing - Hra,Central Heating,Enhancements,INSTALL HEATING - ST GEORGES COURT,29/04/2022,REDACTED INVOICE NUMBER,157898,411639.99,Capital,27759,Axis Europe,E15 4PN,0
Capex Director Of Housing,Housing - Hra,Housing Stock Rewiring,Enhancements,COMMUNAL - MAR '22,29/04/2022,REDACTED INVOICE NUMBER,158224,867.6,Capital,27759,Axis Europe,E15 4PN,0
Hra Expenditure,Repairs And Maintenance,Responsive Repairs Management,Electricity,ELECTRICITY SUPPLY,29/04/2022,REDACTED INVOICE NUMBER,158224,1097.14,Revenue,27759,Axis Europe,E15 4PN,0
Hra Expenditure,Repairs And Maintenance,Responsive Repairs Management,Pest Control,COMMUNAL - MAR '22,29/04/2022,REDACTED INVOICE NUMBER,158224,713.5,Revenue,27759,Axis Europe,E15 4PN,0
Hra Expenditure,Repairs And Maintenance,Responsive Repairs Management,R&M Fix & Fit - Communal,COMMUNAL - MAR '22,29/04/2022,REDACTED INVOICE NUMBER,158224,19066.75,Revenue,27759,Axis Europe,E15 4PN,0
Director Housing & Enforcement,Cctv,Community Safety - Cctv,Purchases - General Equipment,CHAIR,22/04/2022,REDACTED INVOICE NUMBER,158790,929.16,Revenue,27604,Back 2 International,W1U 2RN,0
Director Housing & Enforcement,Homelessness,Homelessness Admin,Other Fees & Service,DSE Assessment,22/04/2022,REDACTED INVOICE NUMBER,158789,165,Revenue,27604,Back 2 International,W1U 2RN,0
Capex Director Of Housing,Housing - Affordable Housing,Harewood Rd Dev,Enhancements,Community Engagement Services,29/04/2022,REDACTED INVOICE NUMBER,158678,12993.5,Capital,305,Barton Willmore,RG1 3BE,0
Director Housing & Enforcement,Homelessness,Homelessness Prevention,Rent Deposit Scheme,RENT DEPOSIT,19/04/2022,REDACTED INVOICE NUMBER,158526,5926.92,Revenue,339,Beresfords Commerical Ltd,CM14 4DB,0
Director Of Law & Governance,Legal Services & Data Protect,Legal Services & Data Protect,Legal Fees,RIGHT TO BUY,05/04/2022,REDACTED INVOICE NUMBER,158286,425,Revenue,359,Birketts Llp,CM2 0AP,0
Director Of Law & Governance,Legal Services & Data Protect,Legal Services & Data Protect,Search Fees,RIGHT TO BUY,05/04/2022,REDACTED INVOICE NUMBER,158286,27,Revenue,359,Birketts Llp,CM2 0AP,0
Capex Director Of Housing,Housing - Affordable Housing,Maple Close,Enhancements,ADVICE RE MAPLE CLOSE ,14/04/2022,REDACTED INVOICE NUMBER,157263,390,Capital,359,Birketts Llp,CM2 0AP,0
Capex Director Of Housing,Housing - Affordable Housing,Brookfield Project,Enhancements,BROOKFIELD CLOSE,19/04/2022,REDACTED INVOICE NUMBER,157105,2510,Capital,359,Birketts Llp,CM2 0AP,0
Director Of Law & Governance,Legal Services & Data Protect,Legal Services & Data Protect,Legal Fees,ALLAN FORD SERVICE CENTRE LEASE ,19/04/2022,REDACTED INVOICE NUMBER,158285,250,Revenue,359,Birketts Llp,CM2 0AP,0
Director Of Law & Governance,Legal Services & Data Protect,Legal Services & Data Protect,Search Fees,ALLAN FORD SERVICE CENTRE LEASE ,19/04/2022,REDACTED INVOICE NUMBER,158285,6,Revenue,359,Birketts Llp,CM2 0AP,0
Director Of Law & Governance,Legal Services & Data Protect,Legal Services & Data Protect,Legal Fees,DISREPAIR,22/04/2022,REDACTED INVOICE NUMBER,158280,212.5,Revenue,359,Birketts Llp,CM2 0AP,0
Director Of Law & Governance,Legal Services & Data Protect,Legal Services & Data Protect,Legal Fees,LEASE RENEWAL,22/04/2022,REDACTED INVOICE NUMBER,157889,1875,Revenue,359,Birketts Llp,CM2 0AP,0
Director Of Law & Governance,Legal Services & Data Protect,Legal Services & Data Protect,Court Fees,POSSESSION,26/04/2022,REDACTED INVOICE NUMBER,158209,108,Revenue,359,Birketts Llp,CM2 0AP,0
Director Of Law & Governance,Legal Services & Data Protect,Legal Services & Data Protect,Court Fees,INJUNCTION,26/04/2022,REDACTED INVOICE NUMBER,158290,332,Revenue,359,Birketts Llp,CM2 0AP,0
Director Of Law & Governance,Legal Services & Data Protect,Legal Services & Data Protect,Legal Fees,DISREPAIR,26/04/2022,REDACTED INVOICE NUMBER,158281,543,Revenue,359,Birketts Llp,CM2 0AP,0
Director Of Law & Governance,Legal Services & Data Protect,Legal Services & Data Protect,Legal Fees,FAILED SUCCESSION,26/04/2022,REDACTED INVOICE NUMBER,158283,157.5,Revenue,359,Birketts Llp,CM2 0AP,0
Director Of Law & Governance,Legal Services & Data Protect,Legal Services & Data Protect,Legal Fees,DISREPAIR,26/04/2022,REDACTED INVOICE NUMBER,158279,223,Revenue,359,Birketts Llp,CM2 0AP,0
Director Of Law & Governance,Legal Services & Data Protect,Legal Services & Data Protect,Legal Fees,POSSESSION,26/04/2022,REDACTED INVOICE NUMBER,158209,550,Revenue,359,Birketts Llp,CM2 0AP,0
Director Of Law & Governance,Legal Services & Data Protect,Legal Services & Data Protect,Legal Fees,LEASE RENEWAL,26/04/2022,REDACTED INVOICE NUMBER,158389,750,Revenue,359,Birketts Llp,CM2 0AP,0
Director Of Law & Governance,Legal Services & Data Protect,Legal Services & Data Protect,Legal Fees,SUSSCESSION,26/04/2022,REDACTED INVOICE NUMBER,158282,415,Revenue,359,Birketts Llp,CM2 0AP,0
Director Of Law & Governance,Legal Services & Data Protect,Legal Services & Data Protect,Legal Fees,LEGAL FEES,26/04/2022,REDACTED INVOICE NUMBER,158390,450,Revenue,359,Birketts Llp,CM2 0AP,0
Director Of Law & Governance,Legal Services & Data Protect,Legal Services & Data Protect,Legal Fees,INJUNCTION,26/04/2022,REDACTED INVOICE NUMBER,158290,1550,Revenue,359,Birketts Llp,CM2 0AP,0
Director Of Law & Governance,Legal Services & Data Protect,Legal Services & Data Protect,Legal Fees,POSSESSION,26/04/2022,REDACTED INVOICE NUMBER,158289,368.5,Revenue,359,Birketts Llp,CM2 0AP,0
Director Of Law & Governance,Legal Services & Data Protect,Legal Services & Data Protect,Legal Fees,LEGAL FEES,29/04/2022,REDACTED INVOICE NUMBER,158260,0,Revenue,359,Birketts Llp,CM2 0AP,0
Hra Expenditure,Repairs And Maintenance,Planned Maintenance,Consultancy Fees,CONSULTANCY,19/04/2022,REDACTED INVOICE NUMBER,158320,810,Revenue,26809,Bloom Procurement Services,NE8 2ET,0
Director Of Planning & Economy,Planning Policy Total,Planning Policy,Other Fees & Service,DUNTON HILLS GARDEN VILLAGE,26/04/2022,REDACTED INVOICE NUMBER,158439,8180,Revenue,387,Bps Surveyors Llp,RH4 1RU,0
Director Of Environment,Waste Management,Recycling - Dry,Advertising - General,GRAPHIC DESIGN  PRINTING FEES,29/04/2022,REDACTED INVOICE NUMBER,158816,120,Revenue,391,Braintree District Council,CM7 9HB,0
Capex Director Of Environment,Corporate Services,King George'S Redevelopment,Contracted Services,BLINDS - KING GEORGES PAVILLION,26/04/2022,REDACTED INVOICE NUMBER,158549,2061,Capital,202818P,Brentwood Blinds Ltd,RM4 1HB,0
Capex Director Of Environment,Corporate Services,King George'S Redevelopment,Contracted Services,BLINDS - KING GEORGES PAVILLION,26/04/2022,REDACTED INVOICE NUMBER,158547,1845.84,Capital,202818P,Brentwood Blinds Ltd,RM4 1HB,0
Capex Director Of Housing,Housing - Affordable Housing,Maple Close,Enhancements,RECHARGE OF COSTS - MAPLE CLOSE,08/04/2022,REDACTED INVOICE NUMBER,158265,500,Capital,185870P,Brentwood Development Partnership Llp,W1D 3QR,0
Hra Expenditure,Repairs And Maintenance,Responsive Repairs Management,Other Fees & Service,PROGRAMMED FOBS,08/04/2022,REDACTED INVOICE NUMBER,158393,446,Revenue,444,Brentwood Lock & Safe,CM15 9DL,0
Director Of Environment,Open Spaces,Buildings & Stakeholders,R&M Bldgs - General,KEY CUT,26/04/2022,REDACTED INVOICE NUMBER,158642,5,Revenue,444,Brentwood Lock & Safe,CM15 9DL,0
Director Corporate Resources,Asset Management,Asset Management,R&M Bldgs - General,BOILER REPAIRS. BISHOPS HALL / NIGHTINGA,19/04/2022,REDACTED INVOICE NUMBER,158434,774,Revenue,445,Brentwood M & E Services Ltd,CM6 3HT,0
Director Corporate Resources,Office Accommodation,Office Facilities Management,R&M Bldgs - General,REPAIRS,22/04/2022,REDACTED INVOICE NUMBER,158782,120,Revenue,445,Brentwood M & E Services Ltd,CM6 3HT,0
Director Corporate Resources,Asset Management,Asset Management,R&M Bldgs - General,REPAIRS,26/04/2022,REDACTED INVOICE NUMBER,158516,220,Revenue,445,Brentwood M & E Services Ltd,CM6 3HT,0
Director Corporate Resources,Asset Management,Asset Management,R&M Bldgs - General,Nightingale Centre,26/04/2022,REDACTED INVOICE NUMBER,158517,650,Revenue,445,Brentwood M & E Services Ltd,CM6 3HT,0
Director Housing & Enforcement,Homelessness,Homelessness Prevention,B & B Charges (Homelessness),HOMELESSNESS PREVENTION,19/04/2022,REDACTED INVOICE NUMBER,157790,3529.26,Revenue,28943,Britannia Inn Hotel,IG1 3BD,0
Hra Expenditure,Repairs And Maintenance,Responsive Void Repairs,Electricity,ELECTRICITY SUPPLY,29/04/2022,REDACTED INVOICE NUMBER,158887,15.72,Revenue,492,British Gas Trading Limited (Please Use),GU95 1AB,0
Hra Expenditure,Repairs And Maintenance,Responsive Void Repairs,Electricity,ELECTRICITY SUPPLY,29/04/2022,REDACTED INVOICE NUMBER,158888,11.76,Revenue,492,British Gas Trading Limited (Please Use),GU95 1AB,0
Hra Expenditure,Repairs And Maintenance,Responsive Void Repairs,Electricity,ELECTRICITY SUPPLY,29/04/2022,REDACTED INVOICE NUMBER,158733,30.01,Revenue,492,British Gas Trading Limited (Please Use),GU95 1AB,0
Hra Expenditure,Repairs And Maintenance,Responsive Void Repairs,Electricity,ELECTRICITY SUPPLY,29/04/2022,REDACTED INVOICE NUMBER,158316,15.7,Revenue,492,British Gas Trading Limited (Please Use),GU95 1AB,0
Hra Expenditure,Repairs And Maintenance,Responsive Void Repairs,Gas,GAS SUPPLY,29/04/2022,REDACTED INVOICE NUMBER,158888,61.03,Revenue,492,British Gas Trading Limited (Please Use),GU95 1AB,0
Hra Expenditure,Repairs And Maintenance,Responsive Void Repairs,Gas,GAS SUPPLY,29/04/2022,REDACTED INVOICE NUMBER,158315,12.56,Revenue,492,British Gas Trading Limited (Please Use),GU95 1AB,0
Director Of Environment,"Communities, Health & Leisure",Sports & Social Venues,Income - Donations,UKRAINE CONCERT DONATIONS,19/04/2022,REDACTED INVOICE NUMBER,158459,4623.69,Revenue,204179P,British Red Cross,EC2Y 9AL,0
Director Of Environment,Vehicle Fleet Management,Vehicle Fleet Management,Vehicle Replacement Parts,PARTS,14/04/2022,REDACTED INVOICE NUMBER,158510,214.4,Revenue,25512,C V Components,EM8 7NH,0
Director Of Environment,Vehicle Fleet Management,Vehicle Fleet Management,Vehicle Replacement Parts,CREDIT NOTE,14/04/2022,REDACTED INVOICE NUMBER,157260,-58.04,Revenue,25512,C V Components,EM8 7NH,0
Director Of Environment,Vehicle Fleet Management,Vehicle Fleet Management,Vehicle Replacement Parts,CREDIT NOTE,14/04/2022,REDACTED INVOICE NUMBER,156821,-54,Revenue,25512,C V Components,EM8 7NH,0
Director Of Environment,Vehicle Fleet Management,Vehicle Fleet Management,Vehicle Replacement Parts,VEHICLE PARTS,14/04/2022,REDACTED INVOICE NUMBER,156676,265,Revenue,25512,C V Components,EM8 7NH,0
Director Of Environment,Vehicle Fleet Management,Vehicle Fleet Management,Vehicle Replacement Parts,VEHICLE PARTS,14/04/2022,REDACTED INVOICE NUMBER,156987,425.17,Revenue,25512,C V Components,EM8 7NH,0
Director Of Environment,Vehicle Fleet Management,Vehicle Fleet Management,Vehicle Replacement Parts,VEHICLE PARTS,14/04/2022,REDACTED INVOICE NUMBER,157158,41.57,Revenue,25512,C V Components,EM8 7NH,0
Director Of Environment,Grounds Maintenance,Grounds Maintenance,Purchases - General Equipment,VEHICLE PARTS,29/04/2022,REDACTED INVOICE NUMBER,158104,66.5,Revenue,25512,C V Components,EM8 7NH,0
Director Of Environment,Vehicle Fleet Management,Vehicle Fleet Management,Vehicle Replacement Parts,VEHICLE PARTS,29/04/2022,REDACTED INVOICE NUMBER,158233,146.64,Revenue,25512,C V Components,EM8 7NH,0
Director Of Environment,Vehicle Fleet Management,Vehicle Fleet Management,Vehicle Replacement Parts,VEHICLE PARTS,29/04/2022,REDACTED INVOICE NUMBER,158103,166.14,Revenue,25512,C V Components,EM8 7NH,0
Capex Director Of C Resources,Corporate Finance,E-Financial,Consultancy Fees,DEPLOYMENT OF SCA FUNCTIONALITY,05/04/2022,REDACTED INVOICE NUMBER,158098,4195,Capital,560,Capita Business Services Ltd,SWIH 0XA,0
Director Corporate Resources,Corporate Management,Corporate Management Costs,Bank Charges,TRANSACTION CHARGES - MAR '22,08/04/2022,REDACTED INVOICE NUMBER,158433,138.14,Revenue,560,Capita Business Services Ltd,SWIH 0XA,0
Director Corporate Resources,Corporate Management,Corporate Management Costs,Bank Charges,TRANSACTIONS CHARGES,19/04/2022,REDACTED INVOICE NUMBER,158631,"7,145.95",Revenue,560,Capita Business Services Ltd,SWIH 0XA,0
Hra Expenditure,Supervision And Management,Policy And Management,Stationery - General,FOOTPRINT ALTERNATIVE TO HP,29/04/2022,REDACTED INVOICE NUMBER,158278,244.95,Revenue,586,Ccs Media Ltd,RM1 3PJ,0
Balance Sheet,Balance Sheet,Balance Sheet,Highways Stores,CLOTHING,22/04/2022,REDACTED INVOICE NUMBER,157687,78.8,Revenue,645,Chelmsford Safety Supplies,CM1 3AG,0
Hra Expenditure,Repairs And Maintenance,Planned Maintenance,R&M Other - General,Annual Service,22/04/2022,REDACTED INVOICE NUMBER,158599,190.00,Revenue,4962,Closomat Ltd,M33 3SD,0
Capex Director Of Housing,Housing - Affordable Housing,17 Crescent Road,Enhancements,17 CRESCENT ROAD,08/04/2022,REDACTED INVOICE NUMBER,158458,8182.09,Capital,28999,Colnesett Ltd,CO5 9SE,0
Director Of Planning & Economy,Economic Development Total,Economic Development,Other Fees & Service,A5 Concert for Ukraine - 2000,19/04/2022,REDACTED INVOICE NUMBER,158215,159,Revenue,753,Copyright Reprographics Ltd,CM14 4EA,0
Director Of Planning & Economy,Economic Development Total,Economic Development,Other Fees & Service,Artisan Market Posters,19/04/2022,REDACTED INVOICE NUMBER,158214,315,Revenue,753,Copyright Reprographics Ltd,CM14 4EA,0
Director Of Planning & Economy,Economic Development Total,Economic Development,Other Fees & Service,Concert For Ukraine Posters,19/04/2022,REDACTED INVOICE NUMBER,158217,150.00,Revenue,753,Copyright Reprographics Ltd,CM14 4EA,0
Director Of Planning & Economy,Economic Development Total,Economic Development,Other Fees & Service,Concert for Ukrain Printing,19/04/2022,REDACTED INVOICE NUMBER,158213,105.00,Revenue,753,Copyright Reprographics Ltd,CM14 4EA,0
Director Of Planning & Economy,Economic Development Total,Economic Development,Other Fees & Service,Dinosaur Trail Posters Laminated,19/04/2022,REDACTED INVOICE NUMBER,158218,21,Revenue,753,Copyright Reprographics Ltd,CM14 4EA,0
Director Of Planning & Economy,Economic Development Total,Economic Development,Other Fees & Service,Meet the Maker Posters,19/04/2022,REDACTED INVOICE NUMBER,158216,95,Revenue,753,Copyright Reprographics Ltd,CM14 4EA,0
Balance Sheet,Balance Sheet,Balance Sheet,Assize Trust Account,8-12 CROWN STREET - MAR '22,26/04/2022,REDACTED INVOICE NUMBER,158513,40,Revenue,25468,Crown Gas And Power,BL9 7HY,0
Director Of Environment,Open Spaces,Countryside Recreation Mtnce,R&M Grounds - Grass Cutting,TREE WORKS,05/04/2022,REDACTED INVOICE NUMBER,157659,650,Revenue,27170,Cut Above,CM15 0PG,0
Director Of Environment,Open Spaces,Countryside Recreation Mtnce,R&M Grounds - Treework,TREE WORKS,05/04/2022,REDACTED INVOICE NUMBER,157657,350,Revenue,27170,Cut Above,CM15 0PG,0
Director Of Environment,Grounds Maintenance,Grounds Maintenance,Purchases - General Equipment,TREE WORKS,08/04/2022,REDACTED INVOICE NUMBER,157656,840,Revenue,27170,Cut Above,CM15 0PG,0
Hra Expenditure,Special Services,Grounds Maintenance,R&M Grounds - Treework,CLEAR CRAZY PAVING,08/04/2022,REDACTED INVOICE NUMBER,157678,1100,Revenue,27170,Cut Above,CM15 0PG,0
Hra Expenditure,Special Services,Grounds Maintenance,R&M Grounds - Treework,TREE WORKS,08/04/2022,REDACTED INVOICE NUMBER,157679,200,Revenue,27170,Cut Above,CM15 0PG,0
Director Of Environment,Health & Food Safety,Food Safety Enforcement,Analytical Services,FOOD HYGIENE INSPECTIONS,05/04/2022,REDACTED INVOICE NUMBER,157792,1185,Revenue,792,D Barham Limited,CO2 7HW,0
Balance Sheet,Balance Sheet,Balance Sheet,Cycle Scheme Loan Account,CYCLE LOAN SCHEME,22/04/2022,REDACTED INVOICE NUMBER,158737,192.83,Revenue,204758P,REDACTED PERSONAL DATA,REDACTED,0
Director Of Environment,Licensing,Taxi Drivers Account,Other Fees & Service,ANNUAL LICENCE FEE 22/22,26/04/2022,REDACTED INVOICE NUMBER,158763,292.50,Revenue,872,Diamond People Ltd,HR7 4JT,0
Capex Director Of Environment,Corporate Services,King George'S Redevelopment,Contracted Services,REDEVELOPMENT,29/04/2022,REDACTED INVOICE NUMBER,158899,682.5,Capital,204893P,Displaysense,.,0
Director Of Law & Governance,Democratic Services & Support,Civic Services & Support,Miscellaneous Expenses,AWARDS,29/04/2022,REDACTED INVOICE NUMBER,158292,366,Revenue,931,Drayton Gifts Ltd,UB7 8ED,0
Director Of Environment,Street Services,Street Cleansing,Agency Staff,PROJECT MANAGEMENT SUPPORT,26/04/2022,REDACTED INVOICE NUMBER,158589,688.2,Revenue,28029,Driver Hire (Chelmsford & Harlow),CM8 1BA,0
Director Of Environment,Street Services,Street Cleansing,Agency Staff,PROJECT MANAGEMENT SUPPORT,26/04/2022,REDACTED INVOICE NUMBER,158410,279,Revenue,28029,Driver Hire (Chelmsford & Harlow),CM8 1BA,0
Director Of Environment,Waste Management,Waste Collection Support,Agency Staff,PROJECT MANAGEMENT SUPPORT,26/04/2022,REDACTED INVOICE NUMBER,158595,1376.4,Revenue,28029,Driver Hire (Chelmsford & Harlow),CM8 1BA,0
Director Of Environment,Waste Management,Waste Collection Support,Agency Staff,PROJECT MANAGEMENT SUPPORT,26/04/2022,REDACTED INVOICE NUMBER,158410,2666.85,Revenue,28029,Driver Hire (Chelmsford & Harlow),CM8 1BA,0
Capex Director Of Housing,Housing - Affordable Housing,Coram Green,Enhancements,Corum Green Project services,29/04/2022,REDACTED INVOICE NUMBER,158383,22755.79,Capital,970,East Of England Local Government Associat,IP33 3YU,0
Director Corporate Resources,Asset Management,Asset Management,Other Professional Fees,ENERGY PERFORMANCE CERTIFECATES,08/04/2022,REDACTED INVOICE NUMBER,156256,440,Revenue,4861,Eca Group,S18 1NQ,0
Hra Expenditure,Supervision And Management,Policy And Management,Consultancy Fees,WORKS COMPLETED MAR '22,14/04/2022,REDACTED INVOICE NUMBER,158382,191.25,Revenue,27607,Echelon Consultancy Limited,AL1 4TB,0
Hra Expenditure,Special Services,Caretaking,Cleaning & Dom. Supplies-Other,HESELTINE HOUSE GARS.  OCT'21-APR'22,29/04/2022,REDACTED INVOICE NUMBER,158860,60.53,Revenue,1058,Essex + Suffolk Water,DH1 9TX,0
Director Of Planning & Economy,Land Charges,Land Charges,Search Fees,SEARCHS. APR'21 - FEB'22,26/04/2022,REDACTED INVOICE NUMBER,158062,15646.64,Revenue,1075,Essex County Council,CM1 1JZ,0
Hra Expenditure,Supervision And Management,Affordable Hsg,Consultancy Fees,Ingleton House Heritage Statement,29/04/2022,REDACTED INVOICE NUMBER,158293,2500,Revenue,1075,Essex County Council,CM1 1JZ,0
Director Corporate Resources,Asset Management,Asset Management,R&M Bldgs - General,ELECTRICAL WORK - KGPF,26/04/2022,REDACTED INVOICE NUMBER,158732,1260,Revenue,1087,Essex Energy Services,CM14 5DH,0
Director Corporate Resources,Asset Management,Asset Management,R&M Bldgs - General,REPLACE LIGHTING - MSCP OFFICE,26/04/2022,REDACTED INVOICE NUMBER,158727,535,Revenue,1087,Essex Energy Services,CM14 5DH,0
Director Corporate Resources,Asset Management,Asset Management,R&M Bldgs - General,LIGHT REPAIRS - HUTTON POPLARS,29/04/2022,REDACTED INVOICE NUMBER,158730,380,Revenue,1087,Essex Energy Services,CM14 5DH,0
Balance Sheet,Balance Sheet,Balance Sheet,Agency - Active Brentwood,ASTROTURF HIRE,12/04/2022,REDACTED INVOICE NUMBER,158462,112.5,Revenue,203361P,Everyone Active Admin Services Ltd,LE10 3EY,0
Director Of Environment,"Communities, Health & Leisure",Health & Wellbeing,Contracted Services,TRAINING,14/04/2022,REDACTED INVOICE NUMBER,158584,490,Revenue,204743P,Experience Training Ltd,CO6 2NS,0
Director Of Environment,Cemeteries,Cemeteries,Public Funerals Expenses,FUNERAL COSTS,26/04/2022,REDACTED INVOICE NUMBER,158259,1576,Revenue,1132,F.E.Farrer,CM15 8PA,0
Director Housing & Enforcement,Homelessness,Homelessness Prevention,Rent Deposit Scheme,HOMELESSNESS PREVENTION,08/04/2022,REDACTED INVOICE NUMBER,158268,6041.61,Revenue,204249P,Fbn Estates Ltd,CM14 4UP,0
Director Of Environment,Golf Course,Golf Course,Legal Fees,DIRECT DEBIT,08/04/2022,REDACTED INVOICE NUMBER,158418,23.19,Revenue,27884,First Data Global Leasing (Dd Payments),SS14 3WF,0
Director Corporate Resources,Office Accommodation,Office Facilities Management,R&M Bldgs - General,Brentwood Town Hall Flats works,14/04/2022,REDACTED INVOICE NUMBER,158539,320,Revenue,1163,Fisk Building Contractors Ltd,CM11 1PW,0
Capex Director Of C Resources,Asset Management,Community Halls,Enhancements,Hutton Poplar Hall,29/04/2022,REDACTED INVOICE NUMBER,158229,370,Capital,1163,Fisk Building Contractors Ltd,CM11 1PW,0
Director Corporate Resources,Asset Management,Asset Management,R&M Bldgs - General,Hutton Poplar Hall,29/04/2022,REDACTED INVOICE NUMBER,158219,360,Revenue,1163,Fisk Building Contractors Ltd,CM11 1PW,0
Director Corporate Resources,Asset Management,Asset Management,R&M Bldgs - General,NEW FENCE - RAYLEIGH ROAD SHOPS,29/04/2022,REDACTED INVOICE NUMBER,158890,395,Revenue,1163,Fisk Building Contractors Ltd,CM11 1PW,0
Director Of Environment,"Communities, Health & Leisure",Sports & Social Venues,Insurance Claims Recovered,KGPF - REPAIR PIER,29/04/2022,REDACTED INVOICE NUMBER,158306,3200,Revenue,1163,Fisk Building Contractors Ltd,CM11 1PW,0
Director Of Environment,Parking,Parking Services,R&M Other - Car Parks,SERVICE CALL - KGPF,29/04/2022,REDACTED INVOICE NUMBER,158348,558.5,Revenue,4187,Flowbird Smart City Uk Ltd (Was Parkeon),BH12 5AG,0
Director Of Environment,Parking,Parking Services,R&M Other - Car Parks,SOFTWARE FAST TRACK FEE,29/04/2022,REDACTED INVOICE NUMBER,158349,250,Revenue,4187,Flowbird Smart City Uk Ltd (Was Parkeon),BH12 5AG,0
Capex Director Of Environment,Corporate Services,King George'S Redevelopment,Contracted Services,BRENTWOOD PAVILLION COVER,08/04/2022,REDACTED INVOICE NUMBER,157006,3060,Capital,28227,Four-Two Logistics Limited,CM22 7WE,0
Hra Expenditure,Repairs And Maintenance,Planned Maintenance,Contracted Services,ELECTRICAL AUDIT - JAN '22,08/04/2022,REDACTED INVOICE NUMBER,155719,633,Revenue,27976,Gas Contract Services Ltd,ME2 4NZ,0
Director Of Environment,Depot Management & Admin,Depot Management & Admin,Gas,GAS SUPPLY,29/04/2022,REDACTED INVOICE NUMBER,159173,62.54,Revenue,1222,Gazprom Energy,M3 3GY,0
Hra Expenditure,Special Services,Communal Heating,Gas,GAS SUPPLY,29/04/2022,REDACTED INVOICE NUMBER,159172,13.26,Revenue,1222,Gazprom Energy,M3 3GY,0
Hra Expenditure,Special Services,Communal Heating,Gas,GAS SUPPLY,29/04/2022,REDACTED INVOICE NUMBER,159175,32.71,Revenue,1222,Gazprom Energy,M3 3GY,0
Hra Expenditure,Special Services,Communal Heating,Gas,GAS SUPPLY,29/04/2022,REDACTED INVOICE NUMBER,159174,40.02,Revenue,1222,Gazprom Energy,M3 3GY,0
Hra Expenditure,Special Services,Communal Heating,Gas,GAS SUPPLY,29/04/2022,REDACTED INVOICE NUMBER,159176,34.44,Revenue,1222,Gazprom Energy,M3 3GY,0
Hra Expenditure,Special Services,Communal Heating,Gas,GAS SUPPLY,29/04/2022,REDACTED INVOICE NUMBER,159171,95.46,Revenue,1222,Gazprom Energy,M3 3GY,0
Hra Expenditure,Special Services,Communal Heating,Gas,GAS SUPPLY,29/04/2022,REDACTED INVOICE NUMBER,158852,33.2,Revenue,1222,Gazprom Energy,M3 3GY,0
Hra Expenditure,Special Services,Drake House,Gas,GAS SUPPLY,29/04/2022,REDACTED INVOICE NUMBER,159182,3128.3,Revenue,1222,Gazprom Energy,M3 3GY,0
Hra Expenditure,Special Services,Four Oaks,Gas,GAS SUPPLY,29/04/2022,REDACTED INVOICE NUMBER,159085,997.31,Revenue,1222,Gazprom Energy,M3 3GY,0
Hra Expenditure,Special Services,Ingleton House,Gas,GAS SUPPLY,29/04/2022,REDACTED INVOICE NUMBER,159174,120.04,Revenue,1222,Gazprom Energy,M3 3GY,0
Hra Expenditure,Special Services,The Gables,Gas,GAS SUPPLY,29/04/2022,REDACTED INVOICE NUMBER,158852,124.92,Revenue,1222,Gazprom Energy,M3 3GY,0
Capex Director Of Environment,Other Environmental Services,Disabled Facilities Grant,Grants - General,DISABLED FACILITIES GRANT,29/04/2022,REDACTED INVOICE NUMBER,158396,6964,Capital,25620,Gb Adaptions Ltd,CM7 3HY,0
Capex Director Of C Resources,Asset Management,Asset Management Strategy,Enhancements,44 HIGH STREET WORKS,05/04/2022,REDACTED INVOICE NUMBER,158305,13872.2,Capital,1254,Glorcroft Ltd,SS14 1PE,0
Director Of Environment,Parking,Parking Services,Equipment & Tools - R&M,MAINTENANCE OF EQUIPMENT - MAR '22,29/04/2022,REDACTED INVOICE NUMBER,158318,640,Revenue,26130,Glory Global Solutions (International) Ltd,WA16 8GS,0
Director Of Planning & Economy,Economic Development Total,Economic Development,Other Fees & Service,ECONOMIC DEVELOPMENT STRATEGY,12/04/2022,REDACTED INVOICE NUMBER,158450,149,Revenue,28979,Green Tornado Ltd,CM14 5LD,0
Director Corporate Resources,Asset Management,Asset Management,Search Fees,LAND REG DD'S MAR 2022,12/04/2022,REDACTED INVOICE NUMBER,158497,114,Revenue,22013,H M Land Registry,.,0
Director Of Planning & Economy,Planning Development Managemt,Planning Development Managemt,Search Fees,LAND REG DD'S MAR 2022,12/04/2022,REDACTED INVOICE NUMBER,158497,54,Revenue,22013,H M Land Registry,.,0
Hra Expenditure,Supervision And Management,Rent Collection & Recovery,Search Fees,LAND REG DD'S MAR 2022,12/04/2022,REDACTED INVOICE NUMBER,158497,21,Revenue,22013,H M Land Registry,.,0
Capex Director Of Housing,Housing - Affordable Housing,17 Crescent Road,Enhancements,BROOKFIELD CLOSE,29/04/2022,REDACTED INVOICE NUMBER,157406,540,Capital,28405,Hamson Barron Smith Ltd,NR6 6EQ,0
Capex Director Of Housing,Housing - Affordable Housing,17 Crescent Road,Enhancements,CRESCENT ROAD CONVERSION,29/04/2022,REDACTED INVOICE NUMBER,151397,1906,Capital,28405,Hamson Barron Smith Ltd,NR6 6EQ,0
Capex Director Of Housing,Housing - Affordable Housing,17 Crescent Road,Enhancements,ENHANCEMENTS,29/04/2022,REDACTED INVOICE NUMBER,153313,-6308.25,Capital,28405,Hamson Barron Smith Ltd,NR6 6EQ,0
Capex Director Of Housing,Housing - Hra,Housing - Shops,Enhancements,CRESCENT ROAD - CONVERSION,29/04/2022,REDACTED INVOICE NUMBER,159193,2400,Capital,28405,Hamson Barron Smith Ltd,NR6 6EQ,0
Director Of Planning & Economy,Planning Development Managemt,Planning Development Managemt,Other Fees & Service,WESTBURY ROAD CAR PARK,29/04/2022,REDACTED INVOICE NUMBER,158412,1170,Revenue,28405,Hamson Barron Smith Ltd,NR6 6EQ,0
Hra Expenditure,Special Services,Sheltered Welfare Services,Contracted Services,ENHANCEMENTS,29/04/2022,REDACTED INVOICE NUMBER,154246,1200,Revenue,28405,Hamson Barron Smith Ltd,NR6 6EQ,0
Director Of Environment,Vehicle Fleet Management,Vehicle Fleet Management,Purchases - General Equipment,HIGH BAYS REPAIRS - DEPOT,19/04/2022,REDACTED INVOICE NUMBER,158298,815.98,Revenue,1322,Haps Garage Equipment Ltd,SS7 3YT,0
Director Of Environment,Vehicle Fleet Management,Vehicle Fleet Management,Purchases - General Equipment,PIT BAY REPAIRS - DEPOT,19/04/2022,REDACTED INVOICE NUMBER,158299,800,Revenue,1322,Haps Garage Equipment Ltd,SS7 3YT,0
Director Of Environment,Vehicle Fleet Management,Vehicle Fleet Management,Vehicle R&M - External,TRAILER PARTS,14/04/2022,REDACTED INVOICE NUMBER,158253,125,Revenue,1329,Harris Commercial Repairs Limited,RM20 4AU,0
Director Of Environment,Vehicle Fleet Management,Vehicle Fleet Management,Vehicle R&M - External,MOT,29/04/2022,REDACTED INVOICE NUMBER,158675,191,Revenue,28491,Harris Truck And Van Ltd (Witham),CM8 3UJ,0
Director Of Environment,Vehicle Fleet Management,Vehicle Fleet Management,Vehicle R&M - External,MOT,29/04/2022,REDACTED INVOICE NUMBER,158676,213,Revenue,28491,Harris Truck And Van Ltd (Witham),CM8 3UJ,0
Director Of Environment,Vehicle Fleet Management,Vehicle Fleet Management,Vehicle R&M - External,MOT,29/04/2022,REDACTED INVOICE NUMBER,158677,213,Revenue,28491,Harris Truck And Van Ltd (Witham),CM8 3UJ,0
Director Of Environment,"Communities, Health & Leisure",Community Development,Other Fees & Service,DEVELOPMENT,29/04/2022,REDACTED INVOICE NUMBER,159178,2500,Revenue,205165P,Hartswood Golf Club,CM13 2FD,0
Director Corporate Resources,Corporate Finance,Corporate Finance,Agency Staff,PROJECT MANAGEMENT SUPPORT,12/04/2022,REDACTED INVOICE NUMBER,158347,1173.3,Revenue,27208,Hays Specialist Recruitment Ltd,KT3 4QF,0
Director Corporate Resources,Corporate Finance,Corporate Finance,Agency Staff,PROJECT MANAGEMENT SUPPORT,19/04/2022,REDACTED INVOICE NUMBER,158545,1759.95,Revenue,27208,Hays Specialist Recruitment Ltd,KT3 4QF,0
Director Corporate Resources,Corporate Finance,Corporate Finance,Agency Staff,PROJECT MANAGEMENT SUPPORT,22/04/2022,REDACTED INVOICE NUMBER,158684,1173.3,Revenue,27208,Hays Specialist Recruitment Ltd,KT3 4QF,0
Capex Director Of Housing,Housing - Affordable Housing,Brookfield Project,Enhancements,INSPECTION,14/04/2022,REDACTED INVOICE NUMBER,158540,959.65,Capital,29025,Hc Surveyors Ltd,EC2M 3XD,0
Hra Expenditure,Supervision And Management,Policy And Management,Contracted Services,SEC GUARDS. DRAKE HOUSE. W/C 23.8.20,08/04/2022,REDACTED INVOICE NUMBER,158386,1890,Revenue,1353,Headline Security Limited,CM14 4RA,0
Director Housing & Enforcement,Homelessness,Homelessness Prevention,B & B Charges (Homelessness),HOMELESSNESS PREVENTION,26/04/2022,REDACTED INVOICE NUMBER,158783,1240,Revenue,25526,House To Home Lettings Ltd,DA8 3BH,0
Director Housing & Enforcement,Community Safety,Corporate Enforcement,Enforcement,REBILLING OF VAT - FPN - MAR '22,29/04/2022,REDACTED INVOICE NUMBER,158295,0,Revenue,28449,Hsg Facilities Management Ltd,CF24 5EL,0
Director Of Environment,Env Health & Licensing Admin,Env Health & Licensing Admin,Agency Staff,PROJECT MANAGEMENT SUPPORT,29/04/2022,REDACTED INVOICE NUMBER,158287,8096,Revenue,28449,Hsg Facilities Management Ltd,CF24 5EL,0
Director Corporate Resources,Design And Print Services,Design & Print Services,Other Fees & Service,SERVICE-CONT,14/04/2022,REDACTED INVOICE NUMBER,158237,175,Revenue,25054,Hussey Knights (Use Supplier 28945),CM13 1TN,0
Director Corporate Resources,Design And Print Services,Design & Print Services,Other Fees & Service,SERVICE-CONTRACT,19/04/2022,REDACTED INVOICE NUMBER,158406,175,Revenue,25054,Hussey Knights (Use Supplier 28945),CM13 1TN,0
Director Digital & Customer En,Digital Servs & Transformation,Ict Services,Network Maintenance,FIREWALL SUPPORT,26/04/2022,REDACTED INVOICE NUMBER,158105,203.75,Revenue,1467,Hytec Information Security Ltd,TW11 9AA,0
Director Corporate Resources,Office Accommodation,Office Accommodation,Postage Costs Direct,Imail Hybrid Premium,05/04/2022,REDACTED INVOICE NUMBER,158066,94.62,Revenue,5008,Imail Comms Ltd,CV3 4LA,0
Director Corporate Resources,Office Accommodation,Office Accommodation,Postage Costs Direct,Imail Hybrid Premium,08/04/2022,REDACTED INVOICE NUMBER,158344,11.27,Revenue,5008,Imail Comms Ltd,CV3 4LA,0
Director Corporate Resources,Office Accommodation,Office Accommodation,Postage Costs Direct,Imail Hybrid Premium,14/04/2022,REDACTED INVOICE NUMBER,158580,1874.13,Revenue,5008,Imail Comms Ltd,CV3 4LA,0
Director Corporate Resources,Office Accommodation,Office Accommodation,Postage Costs Direct,Imail Hybrid Premium,29/04/2022,REDACTED INVOICE NUMBER,158883,196.27,Revenue,5008,Imail Comms Ltd,CV3 4LA,0
Director Corporate Resources,Office Accommodation,Office Accommodation,Postage Costs Direct,Imail Hybrid Premium,29/04/2022,REDACTED INVOICE NUMBER,159103,203.25,Revenue,5008,Imail Comms Ltd,CV3 4LA,0
Director Corporate Resources,Corporate Management,Corporate Management Costs,Treasury - Brokerage Fees Gen,Brokerage,29/04/2022,REDACTED INVOICE NUMBER,158249,6643.83,Revenue,27847,Imperial Treasury Services Ltd,SG14 1PJ,0
Capex Director Of Environment,Corporate Services,King George'S Redevelopment,Contracted Services,METER INSTALL,29/04/2022,REDACTED INVOICE NUMBER,159219,864.55,Capital,216904P,Imserv,TF3 3BL,0
Capex Director Of Environment,Corporate Services,King George'S Redevelopment,Contracted Services,METER INSTALL,29/04/2022,REDACTED INVOICE NUMBER,159220,167.8,Capital,216904P,Imserv,TF3 3BL,0
Capex Director Of Environment,Corporate Services,King George'S Redevelopment,Contracted Services,METER INSTALL,29/04/2022,REDACTED INVOICE NUMBER,159221,52.91,Capital,216904P,Imserv,TF3 3BL,0
Director Digital & Customer En,Digital Servs & Transformation,Ict Services,Subscriptions,DIRECT DEBIT,08/04/2022,REDACTED INVOICE NUMBER,158409,2895,Revenue,1499,Information Commissioner (Pg Only),SK9 5AX,0
Director Of Environment,Vehicle Fleet Management,Vehicle Fleet Management,Vehicle R&M - External,CALL OUT,05/04/2022,REDACTED INVOICE NUMBER,157233,220,Revenue,1516,Innovative Safety Systems Limited,CV3 2RL,0
Director Of Planning & Economy,Planning Development Managemt,Planning Development Managemt,Other Fees & Service,STANDBY FEE FOR COURT HEARING,12/04/2022,REDACTED INVOICE NUMBER,157911,250,Revenue,28484,Invicta Investigation Ltd,CT12 6SJ,0
Director Corporate Resources,Asset Management,Asset Management,Other Professional Fees,ASBESTOS MANAGEMENT SURVEY ,14/04/2022,REDACTED INVOICE NUMBER,158601,350,Revenue,28545,Ismay Asbestos Services,SS14 2PS,0
Director Housing & Enforcement,Homelessness,Homelessness Prevention,Removal Costs,REMOVAL WORKS,12/04/2022,REDACTED INVOICE NUMBER,158532,350,Revenue,1623,Jeakins Domestic + Comm Removals Ltd,SS15 6PZ,0
Director Housing & Enforcement,Homelessness,Homelessness Prevention,Removal Costs,REMOVAL COSTS,22/04/2022,REDACTED INVOICE NUMBER,157671,600,Revenue,1623,Jeakins Domestic + Comm Removals Ltd,SS15 6PZ,0
Director Of Environment,Vehicle Fleet Management,Vehicle Fleet Management,Vehicle Replacement Parts,VEHICLE PARTS,14/04/2022,REDACTED INVOICE NUMBER,158251,268.4,Revenue,25305,Jennings Engineering Supplies Ltd,CM3 6LG,0
Director Of Environment,Vehicle Fleet Management,Vehicle Fleet Management,Vehicle Replacement Parts,VEHICLE PARTS,19/04/2022,REDACTED INVOICE NUMBER,158598,258.45,Revenue,25305,Jennings Engineering Supplies Ltd,CM3 6LG,0
Director Of Environment,Vehicle Fleet Management,Vehicle Fleet Management,Vehicle Replacement Parts,VEHICLE PARTS,29/04/2022,REDACTED INVOICE NUMBER,158725,281.05,Revenue,25305,Jennings Engineering Supplies Ltd,CM3 6LG,0
Hra Expenditure,Supervision And Management,Policy And Management,Project Management Support,SHDP March 2022,29/04/2022,REDACTED INVOICE NUMBER,158337,5019.6,Revenue,28185,Joseph Hardy & Company Ltd,CM4 9TA,0
Director Of Law & Governance,Legal Services & Data Protect,Legal Services & Data Protect,Other Professional Fees,Procurement Strategy,05/04/2022,REDACTED INVOICE NUMBER,158319,150,Revenue,28889,Jps Creates,CM1 4EP,0
Capex Director Of Environment,Environmental Initiatives,Cemetry Infrastructure,Enhancements,FENCING - HUTTON REC,29/04/2022,REDACTED INVOICE NUMBER,159100,2735,Capital,1684,Just Fencing + Landscaping Services,SS12 OJX,0
Capex Director Of Environment,Environmental Initiatives,Cemetry Infrastructure,Enhancements,VARIOUS WORKS - WARLEY COUNTRY PARK,29/04/2022,REDACTED INVOICE NUMBER,159101,3883,Capital,1684,Just Fencing + Landscaping Services,SS12 OJX,0
Capex Director Of Environment,Environmental Initiatives,S106 Mountnessing Scrap Yard,Enhancements,INSTALL SIGNS - COURAGE PARK,29/04/2022,REDACTED INVOICE NUMBER,159164,795,Capital,1684,Just Fencing + Landscaping Services,SS12 OJX,0
Capex Director Of Environment,Environmental Initiatives,S106 Mountnessing Scrap Yard,Enhancements,LAY ASTRO TURF - HUTTON REC,29/04/2022,REDACTED INVOICE NUMBER,159166,3490,Capital,1684,Just Fencing + Landscaping Services,SS12 OJX,0
Director Corporate Resources,Asset Management,Asset Management,Enhancements,FENCE REPAIRS - WHITTINGTON ROAD,29/04/2022,REDACTED INVOICE NUMBER,159165,428.00,Revenue,1684,Just Fencing + Landscaping Services,SS12 OJX,0
Director Corporate Resources,Asset Management,Asset Management,Enhancements,HEIGHT BARRIER GATE - B/WOOD CENTRE,29/04/2022,REDACTED INVOICE NUMBER,159094,300,Revenue,1684,Just Fencing + Landscaping Services,SS12 OJX,0
Director Corporate Resources,Asset Management,Asset Management,Enhancements,SECURE AREA - WARLEY DEPOT,29/04/2022,REDACTED INVOICE NUMBER,159105,640,Revenue,1684,Just Fencing + Landscaping Services,SS12 OJX,0
Director Corporate Resources,Asset Management,Asset Management,R&M Bldgs - General,FENCING - LONDON ROAD CEMETERY,29/04/2022,REDACTED INVOICE NUMBER,159097,2122,Revenue,1684,Just Fencing + Landscaping Services,SS12 OJX,0
Director Corporate Resources,Asset Management,Asset Management,R&M Bldgs - General,PAVING REPAIRS - MERRYMEADE HOUSE,29/04/2022,REDACTED INVOICE NUMBER,159096,2490,Revenue,1684,Just Fencing + Landscaping Services,SS12 OJX,0
Director Of Environment,Open Spaces,Buildings & Stakeholders,R&M Fix & Fit - General,FENCING - BOUNDARY DRIVE,29/04/2022,REDACTED INVOICE NUMBER,159099,2460,Revenue,1684,Just Fencing + Landscaping Services,SS12 OJX,0
Director Of Environment,Waste Management,Refuse Waste,Training Expenses,Driver CPC (Online),26/04/2022,REDACTED INVOICE NUMBER,158645,295,Revenue,25904,Keep Legal Consultancy Ltd,RM15 4YD,0
Director Of Planning & Economy,Planning Development Managemt,Planning Development Managemt,Contracted Services,Hallmark planning application,29/04/2022,REDACTED INVOICE NUMBER,158294,16500,Revenue,28826,Kew Property Consultants Limited,CF5 2EX,0
Director Of Planning & Economy,Planning Development Managemt,Planning Development Managemt,Contracted Services,Roseland Planning Application,29/04/2022,REDACTED INVOICE NUMBER,158690,12000,Revenue,28826,Kew Property Consultants Limited,CF5 2EX,0
Hra Expenditure,Repairs And Maintenance,Planned Maintenance,R&M Fix & Fit - Fire Maintenan,FIRE SAFETY CONSULTANCY,29/04/2022,REDACTED INVOICE NUMBER,158440,2000,Revenue,22407,Keystone Asset Management Solutions,CO1 1RA,0
Balance Sheet,Balance Sheet,Balance Sheet,Homes For Ukraine,HOMES FOR UKRAINE,29/04/2022,REDACTED INVOICE NUMBER,159271,200,Revenue,216912P,REDACTED PERSONAL DATA,REDACTED,0
Director Of Planning & Economy,Building Control,Building Control - Chargeable,Subscriptions,LABC SERVICE FEE 22/23,29/04/2022,REDACTED INVOICE NUMBER,159212,1898.45,Revenue,1769,Labc Services (Promotions),CV11 6SN,0
Director Housing & Enforcement,Homelessness,B&B Accommodation,B & B Charges (Homelessness),HOMELESSNESS PREVENTION,12/04/2022,REDACTED INVOICE NUMBER,158387,80,Revenue,24333,Lampwick Care,SS1 2AS,0
Director Housing & Enforcement,Homelessness,B&B Accommodation,B & B Charges (Homelessness),HOMELESSNESS PREVENTION,12/04/2022,REDACTED INVOICE NUMBER,158388,140,Revenue,24333,Lampwick Care,SS1 2AS,0
Director Housing & Enforcement,Homelessness,B&B Accommodation,B & B Charges (Homelessness),HOMELESSNESS PREVENTION,12/04/2022,REDACTED INVOICE NUMBER,158394,210,Revenue,24333,Lampwick Care,SS1 2AS,0
Director Housing & Enforcement,Homelessness,Homelessness Prevention,B & B Charges (Homelessness),HOMELESSNESS PREVENTION,26/04/2022,REDACTED INVOICE NUMBER,158622,490,Revenue,24333,Lampwick Care,SS1 2AS,0
Director Of Environment,Waste Management,Re-Use Schemes,Recycling Credit Charges,Re-Use Credits,26/04/2022,REDACTED INVOICE NUMBER,158741,463.58,Revenue,1834,Lighthouse Furniture Project Ltd,CM13 1TE,0
Director Of Environment,Waste Management,Re-Use Schemes,Recycling Credit Charges,RE-USE CREDITS,26/04/2022,REDACTED INVOICE NUMBER,158739,484.15,Revenue,1834,Lighthouse Furniture Project Ltd,CM13 1TE,0
Director Of Environment,Waste Management,Re-Use Schemes,Recycling Credit Charges,RE-USE CREDITS,26/04/2022,REDACTED INVOICE NUMBER,158740,485.78,Revenue,1834,Lighthouse Furniture Project Ltd,CM13 1TE,0
Director Of Environment,"Communities, Health & Leisure",Sports & Social Venues,Bank Charges,BRENTWOOD CENTRE - MARCH '22,19/04/2022,REDACTED INVOICE NUMBER,158556,20.5,Revenue,27902,Lloyds Bank (Pg),.,0
Director Of Environment,Golf Course,Golf Course,Bank Charges,CHIP AND PIN - MARCH '22,19/04/2022,REDACTED INVOICE NUMBER,158554,136.03,Revenue,27902,Lloyds Bank (Pg),.,0
Director Of Planning & Economy,Land Charges,Land Charges,Subscriptions,Subscription 22-23,26/04/2022,REDACTED INVOICE NUMBER,158628,130,Revenue,1858,Local Land Charges Institute,S70 9LR,0
Hra Expenditure,Supervision And Management,Managing Tenancies,Subscriptions,CHARGES Jan - Mar 22,29/04/2022,REDACTED INVOICE NUMBER,158528,4750,Revenue,1862,Locata (Housing Services) Ltd,HA4 7LF,0
Director Of Law & Governance,Legal Services & Data Protect,Legal Services & Data Protect,Contracted Services,"SALARIES, SHARED SERVICES. FEB '22 ",05/04/2022,REDACTED INVOICE NUMBER,156833,1000,Revenue,22463,London Borough Of Barking And Dagenham,IG11 7LU,0
Director Of Environment,Dog Control,Dog Control,Kennel & Vet Fees,KENNEL COSTS,12/04/2022,REDACTED INVOICE NUMBER,158529,720,Revenue,1913,M.A. Robinson,CM15 0LH,0
Director Corporate Resources,Council Tax & Nndr,Council Tax Collection,Baliff Fees,VAT ON FEES,14/04/2022,REDACTED INVOICE NUMBER,158332,0,Revenue,1956,Marston Group Limited,CM16 9EB,0
Director Of Environment,Vehicle Fleet Management,Vehicle Fleet Management,Equipment - Lease Rentals,TRACK AND TRACE - APR '22,29/04/2022,REDACTED INVOICE NUMBER,158380,42.4,Revenue,1971,Masternaut (Uk) Ltd,LS25 3DF,0
Director Of Environment,Vehicle Fleet Management,Vehicle Fleet Management,Equipment - Lease Rentals,TRACK AND TRACE - MAR '22,29/04/2022,REDACTED INVOICE NUMBER,158392,993.25,Revenue,1971,Masternaut (Uk) Ltd,LS25 3DF,0
Director Of Environment,Depot Management & Admin,Depot Management & Admin,Acas Cot3,COMPENSATION,05/04/2022,REDACTED INVOICE NUMBER,158266,346,Revenue,204247P,REDACTED PERSONAL DATA,REDACTED,0
Director Of Planning & Economy,Economic Development Total,Economic Development,Other Fees & Service,SOCIAL MEDIA SUPPORT,05/04/2022,REDACTED INVOICE NUMBER,158335,9950,Revenue,28462,Maybe Solutions Ltd,TF9 3RW,0
Investment Properties,Investment Properties,Investment Properties,Rents - Other Premises,INCOME COLLECTED IN ERROR,08/04/2022,REDACTED INVOICE NUMBER,158414,138071.3,Revenue,27363,Montagu Evans Llp,EC3A 8BE,0
Investment Properties,Investment Properties,Investment Properties,Rents - Other Premises,INCOME COLLECTED IN ERROR,08/04/2022,REDACTED INVOICE NUMBER,158415,7000,Revenue,27363,Montagu Evans Llp,EC3A 8BE,0
Capex Director Of Environment,Corporate Services,King George'S Redevelopment,Contracted Services,KGPF MAP SIGN OVERLAYS,08/04/2022,REDACTED INVOICE NUMBER,157111,403.36,Capital,2313,Morgan Signs Limited,CM14 4LF,0
Director Of Law & Governance,Democratic Services & Support,Civic Services & Support,Miscellaneous Expenses,Civic Dinner,19/04/2022,REDACTED INVOICE NUMBER,158312,5999.4,Revenue,2320,Mount Avenue Banqueting Suite,CM13 2NS,0
Director Of Law & Governance,Democratic Services & Support,Civic Services & Support,Miscellaneous Expenses,Civic Dinner,26/04/2022,REDACTED INVOICE NUMBER,158760,1262.1,Revenue,2320,Mount Avenue Banqueting Suite,CM13 2NS,0
Capex Director Of Housing,Housing - Affordable Housing,Brookfield Project,Enhancements,ENHANCEMENTS,08/04/2022,REDACTED INVOICE NUMBER,158269,7220.1,Capital,204250P,REDACTED PERSONAL DATA,REDACTED,0
Hra Expenditure,Supervision And Management,Policy And Management,Under Occupation Allowance,UNDER OCCUPATION ALLOWANCE,08/04/2022,REDACTED INVOICE NUMBER,158460,934.93,Revenue,204327P,REDACTED PERSONAL DATA,REDACTED,0
Hra Expenditure,Supervision And Management,Policy And Management,Under Occupation Allowance,UNDER OCCUPATION ALLOWANCE,29/04/2022,REDACTED INVOICE NUMBER,159180,1000,Revenue,205167P,REDACTED PERSONAL DATA,REDACTED,0
Capex Director Of Housing,Housing - Affordable Housing,Brookfield Project,Enhancements,ENHANCEMENTS,12/04/2022,REDACTED INVOICE NUMBER,158527,2500,Capital,204329P,REDACTED PERSONAL DATA,REDACTED,0
Director Of Environment,Parking,Parking Services,Insurances - General Claims,INSURANCE CLAIM,12/04/2022,REDACTED INVOICE NUMBER,158461,192,Revenue,204328P,REDACTED PERSONAL DATA,REDACTED,0
Director Of Environment,Licensing,Taxi Vehicles Account,Printing Materials,PLATES / POUCHES,26/04/2022,REDACTED INVOICE NUMBER,157902,848.9,Revenue,25345,New Auto Ltd - T/A - Mogo Uk,GU12 4UH,0
Director Of Planning & Economy,Economic Development Total,Economic Development,Other Fees & Service,ART MATERIALS,05/04/2022,REDACTED INVOICE NUMBER,158334,200,Revenue,28990,New Day Originals,CM14 5WN,0
Director Of Environment,Vehicle Fleet Management,Vehicle Fleet Management,Vehicle - Tyres,VEHICLE REPAIRS,14/04/2022,REDACTED INVOICE NUMBER,158106,67.98,Revenue,4083,Nicks Tyre Services Ltd,CM15 9SB,0
Director Of Environment,Grounds Maintenance,Grounds Maintenance,Vehicle - Tyres,MOWER REPAIR,26/04/2022,REDACTED INVOICE NUMBER,158313,55,Revenue,4083,Nicks Tyre Services Ltd,CM15 9SB,0
Capex Director Of Housing,Housing - Hra,Housing Stock - Water,Enhancements,PIPE RENEWAL,29/04/2022,REDACTED INVOICE NUMBER,158644,961.61,Capital,4101,Northumbrian Water Limited,DH1 9WF,0
Director Housing & Enforcement,Housing Advice & Enabling,Housing Advice,Medical Reports,MEDICAL ADVICE - HOUSING,29/04/2022,REDACTED INVOICE NUMBER,158341,420,Revenue,4103,Nowmedical,W4 5LH,0
Balance Sheet,Balance Sheet,Balance Sheet,Homes For Ukraine,HOMES FOR UKRAINE,29/04/2022,REDACTED INVOICE NUMBER,159268,600,Revenue,216909P,REDACTED PERSONAL DATA,REDACTED,0
Director Of Planning & Economy,Planning Development Managemt,Planning Development Managemt,Agency Staff,PROJECT MANAGEMENT SUPPORT,08/04/2022,REDACTED INVOICE NUMBER,156667,701.1,Revenue,26959,Park Avenue Recruitment Ltd,EC1V 9EE,0
Capex Director Of Environment,Other Environmental Services,Disabled Facilities Grant,Grants - General,DISABLED FACILITIES GRANT,12/04/2022,REDACTED INVOICE NUMBER,158398,2415.36,Capital,26573,Paul Weightman,CM14 4PL,0
Capex Director Of Environment,Other Environmental Services,Disabled Facilities Grant,Grants - General,DISABLED FACILITIES GRANT,19/04/2022,REDACTED INVOICE NUMBER,158397,1044.6,Capital,26573,Paul Weightman,CM14 4PL,0
Capex Director Of Environment,Other Environmental Services,Disabled Facilities Grant,Grants - General,DISABLED FACILITIES GRANT,22/04/2022,REDACTED INVOICE NUMBER,158454,1478.25,Capital,26573,Paul Weightman,CM14 4PL,0
Capex Director Of Environment,Other Environmental Services,Disabled Facilities Grant,Grants - General,DISABLED FACILITIES GRANT,29/04/2022,REDACTED INVOICE NUMBER,158643,1400,Capital,26573,Paul Weightman,CM14 4PL,0
Director Of Planning & Economy,Economic Development Total,Economic Development,Other Fees & Service,Sponsorship Training Workshop,08/04/2022,REDACTED INVOICE NUMBER,158317,495,Revenue,28989,Pdt Sales Consultancy,CM15 8LP,0
Director Of Environment,Environmental Initiatives,Environmental Initiatives,Purchases - General Equipment,TECHNICAL SUPPORT,14/04/2022,REDACTED INVOICE NUMBER,157262,660,Revenue,24246,Pear Technology Services Limited,PO9 1HS,0
Director Of Environment,Environmental Initiatives,Environmental Initiatives,Purchases - General Equipment,LICENCE UPGRADE,19/04/2022,REDACTED INVOICE NUMBER,157576,3980,Revenue,24246,Pear Technology Services Limited,PO9 1HS,0
Director Of Environment,Environmental Initiatives,Environmental Initiatives,Purchases - General Equipment,NDVI Data,22/04/2022,REDACTED INVOICE NUMBER,157921,570,Revenue,24246,Pear Technology Services Limited,PO9 1HS,0
Capex Director Of Environment,Other Environmental Services,Disabled Facilities Grant,Grants - General,DISABLED FACILITIES GRANT,12/04/2022,REDACTED INVOICE NUMBER,158453,9855,Capital,4220,Pennells & Son,CM13 2JE,0
Director Digital & Customer En,Digital Servs & Transformation,Ict Services,Managed Services,AZURE OVERAGE - FEB '22,29/04/2022,REDACTED INVOICE NUMBER,159191,24774.37,Revenue,4250,Phoenix Software Limited,YO42 1NS,0
Capex Director Of Housing,Housing - Affordable Housing,Coram Green,Enhancements,ENHANCEMENTS,29/04/2022,REDACTED INVOICE NUMBER,159272,1470,Capital,216913P,Pinney Talfourd,RM11 1EW,0
Director Of Environment,Vehicle Fleet Management,Vehicle Fleet Management,Vehicle R&M - External,PARTS,14/04/2022,REDACTED INVOICE NUMBER,156972,603.42,Revenue,4271,Pirtek (Thurrock),RM20 3FH,0
Director Corporate Resources,Asset Management,Asset Management,R&M Bldgs - General,TISSUE ROLLS,29/04/2022,REDACTED INVOICE NUMBER,158301,24.2,Revenue,4300,Power Hygiene + Safety Products Limited,SS6 7UY,0
Director Corporate Resources,Asset Management,Asset Management,R&M Bldgs - General,LIFT MAINTENANCE - JAN22,14/04/2022,REDACTED INVOICE NUMBER,158533,714,Revenue,4308,Precision Lift Services Ltd,SS14 3BZ,0
Hra Expenditure,Supervision And Management,Policy And Management,Training Expenses,Social Housing Conference '22,29/04/2022,REDACTED INVOICE NUMBER,158761,319.2,Revenue,28543,Prof. Development Grp T/A Government Events,SK9 4LY,0
Director Of Planning & Economy,Economic Development Total,Economic Development,Other Fees & Service,LEAFLETS,12/04/2022,REDACTED INVOICE NUMBER,157927,30,Revenue,18232,Quest Printing & Design Ltd,SS13 1QJ,0
Director Of Law & Governance,Democratic Services & Support,Civic Services & Support,Chairmans Civic Expenditure,Civic Dinner,26/04/2022,REDACTED INVOICE NUMBER,158819,200,Revenue,204888P,Quite Frankly,BR4 9EE,0
Director Digital & Customer En,Digital Servs & Transformation,Ict Services,Internet Services,SSL Certificates,08/04/2022,REDACTED INVOICE NUMBER,156973,198,Revenue,4360,Quovadis Online Security Ltd,PE22 OTW,0
Capex Director Of Housing,Housing - Affordable Housing,Brookfield Project,Enhancements,CONVEYANCING,29/04/2022,REDACTED INVOICE NUMBER,159235,350,Capital,216905P,REDACTED PERSONAL DATA,REDACTED,0
Director Of Planning & Economy,Planning Development Managemt,Planning Development Managemt,Advertising - General,ADVERT PLACEMENT,19/04/2022,REDACTED INVOICE NUMBER,157684,254.2,Revenue,27928,Reach Publishing Services Ltd,E14 5AP,0
Director Of Planning & Economy,Planning Development Managemt,Planning Development Managemt,Advertising - General,ADVERT PLACEMENT,29/04/2022,REDACTED INVOICE NUMBER,158346,838.86,Revenue,27928,Reach Publishing Services Ltd,E14 5AP,0
Director Housing & Enforcement,Homelessness,Private Sector Acc Leased,Rent/Hire Of Buildings,PRIVATE SECTOR LEASING,12/04/2022,REDACTED INVOICE NUMBER,158102,600,Revenue,2339,REDACTED PERSONAL DATA,REDACTED,0
Director Housing & Enforcement,Homelessness,Private Sector Acc Leased,Rent/Hire Of Buildings,PRIVATE SECTOR LEASING,19/04/2022,REDACTED INVOICE NUMBER,158261,725,Revenue,2968,REDACTED PERSONAL DATA,REDACTED,0
Director Of Environment,Health & Food Safety,Corporate Health & Safety,Contracted Services,Identicom 877 Subscription 12M,08/04/2022,REDACTED INVOICE NUMBER,157122,1890,Revenue,26658,Rocksure Systems Ltd,KT19 0DB,0
Director Of Environment,Open Spaces,Countryside Recreation Mtnce,R&M Grounds - Treework,LOADING WOODCHIP,05/04/2022,REDACTED INVOICE NUMBER,158041,880,Revenue,22851,S J Theobald & Sons Ltd,CM13 3PN,0
Director Of Environment,Open Spaces,Countryside Recreation Mtnce,R&M Grounds - Treework,SUPPLY DIGGER AND DRIVER,05/04/2022,REDACTED INVOICE NUMBER,158040,4045,Revenue,22851,S J Theobald & Sons Ltd,CM13 3PN,0
Director Corporate Resources,Asset Management,Asset Management,Service Charges,SERVICE CHG,19/04/2022,REDACTED INVOICE NUMBER,158052,-111190.44,Revenue,28074,Sanderson Weatherall,LS1 4DL,0
Director Corporate Resources,Office Accommodation,Office Facilities Management,Service Charges,VOID SPACE INC. SUITE 1,19/04/2022,REDACTED INVOICE NUMBER,149366,37625.32,Revenue,28074,Sanderson Weatherall,LS1 4DL,0
Director Corporate Resources,Office Accommodation,Office Facilities Management,Service Charges,Void Space (inc Suite 1) - MAR,19/04/2022,REDACTED INVOICE NUMBER,157623,36974.08,Revenue,28074,Sanderson Weatherall,LS1 4DL,0
Director Corporate Resources,Office Accommodation,Office Facilities Management,Service Charges,VOID SPACE (INC. UNIT 1),19/04/2022,REDACTED INVOICE NUMBER,153457,36974.08,Revenue,28074,Sanderson Weatherall,LS1 4DL,0
Director Corporate Resources,Office Accommodation,Office Facilities Management,Service Charges Voids,VOID SPACE INC. SUITE 1,19/04/2022,REDACTED INVOICE NUMBER,149366,10261.91,Revenue,28074,Sanderson Weatherall,LS1 4DL,0
Director Corporate Resources,Office Accommodation,Office Facilities Management,Service Charges Voids,Void Space (inc Suite 1) - MAR,19/04/2022,REDACTED INVOICE NUMBER,157623,10913.15,Revenue,28074,Sanderson Weatherall,LS1 4DL,0
Director Corporate Resources,Office Accommodation,Office Facilities Management,Service Charges Voids,VOID SPACE (INC. UNIT 1),19/04/2022,REDACTED INVOICE NUMBER,153457,10913.15,Revenue,28074,Sanderson Weatherall,LS1 4DL,0
Director Corporate Resources,Asset Development,Asset Development,Surveyors/Estate Agent Fees,KEYS HALL - PROJECT FEASIBILITY,29/04/2022,REDACTED INVOICE NUMBER,158520,21000,Revenue,24162,Savills (Uk) Ltd,CB2 8PA,0
Director Of Environment,Cemeteries,Cemeteries,R&M Grounds - Treework,CLEAR STORM DAMAGED CONIFERS,19/04/2022,REDACTED INVOICE NUMBER,157661,330,Revenue,26018,Scott Williams,RM18 8SU,0
Hra Expenditure,Repairs And Maintenance,Responsive Void Repairs,Gas,GAS SUPPLY,29/04/2022,REDACTED INVOICE NUMBER,158757,83.51,Revenue,4568,Scottish Power,BN11 9LT,0
Director Of Environment,Open Spaces,Amenity Greens,R&M Grounds - Treework,STORM DAMAGE,08/04/2022,REDACTED INVOICE NUMBER,158395,9500,Revenue,26924,Sds Tree Services,CM4 0RX,0
Director Of Environment,Open Spaces,Countryside Recreation Mtnce,R&M Grounds - Treework,Storm damaged trees,19/04/2022,REDACTED INVOICE NUMBER,158405,900,Revenue,26924,Sds Tree Services,CM4 0RX,0
Balance Sheet,Balance Sheet,Balance Sheet,Contractor Retentions Account,CORAM GREEN HOUSING,08/04/2022,REDACTED INVOICE NUMBER,157535,-444.49,Revenue,28406,Seh French Ltd,IP1 5LT,0
Capex Director Of Housing,Housing - Affordable Housing,Coram Green,Enhancements,CORAM GREEN HOUSING,08/04/2022,REDACTED INVOICE NUMBER,157535,29632.47,Capital,28406,Seh French Ltd,IP1 5LT,0
Director Of Law & Governance,Legal Services & Data Protect,Legal Services & Data Protect,Project Management Support,PROJECT MANAGEMENT SUPPORT,08/04/2022,REDACTED INVOICE NUMBER,158044,1482.53,Revenue,4582,Sellick Partnership Group Ltd,M2 5HX,0
Director Of Law & Governance,Legal Services & Data Protect,Legal Services & Data Protect,Project Management Support,PROJECT MANAGEMENT SUPPORT,08/04/2022,REDACTED INVOICE NUMBER,158284,1482.53,Revenue,4582,Sellick Partnership Group Ltd,M2 5HX,0
Director Of Law & Governance,Legal Services & Data Protect,Legal Services & Data Protect,Project Management Support,PROJECT MANAGEMENT SUPPORT,14/04/2022,REDACTED INVOICE NUMBER,158404,1070.71,Revenue,4582,Sellick Partnership Group Ltd,M2 5HX,0
Director Of Law & Governance,Legal Services & Data Protect,Legal Services & Data Protect,Project Management Support,PROJECT MANAGEMENT SUPPORT,29/04/2022,REDACTED INVOICE NUMBER,158850,494.18,Revenue,4582,Sellick Partnership Group Ltd,M2 5HX,0
Director Of Law & Governance,Legal Services & Data Protect,Legal Services & Data Protect,Project Management Support,PROJECT MANAGEMENT SUPPORT,29/04/2022,REDACTED INVOICE NUMBER,158849,1531.94,Revenue,4582,Sellick Partnership Group Ltd,M2 5HX,0
Director Of Environment,Parking,Parking Services,Agency Staff,PROJECT MANAGEMENT SUPPORT,26/04/2022,REDACTED INVOICE NUMBER,158245,520.22,Revenue,4575,Sewell Staffing Limited T/A Sector Recruitme,CM15 0AU,0
Director Of Environment,Parking,Parking Services,Agency Staff,PROJECT MANAGEMENT SUPPORT,26/04/2022,REDACTED INVOICE NUMBER,158244,520.22,Revenue,4575,Sewell Staffing Limited T/A Sector Recruitme,CM15 0AU,0
Director Of Environment,Parking,Parking Services,Agency Staff,PROJECT MANAGEMENT SUPPORT,26/04/2022,REDACTED INVOICE NUMBER,158530,414.77,Revenue,4575,Sewell Staffing Limited T/A Sector Recruitme,CM15 0AU,0
Director Of Environment,Parking,Parking Services,Agency Staff,PROJECT MANAGEMENT SUPPORT,26/04/2022,REDACTED INVOICE NUMBER,158248,520.22,Revenue,4575,Sewell Staffing Limited T/A Sector Recruitme,CM15 0AU,0
Director Of Environment,Street Services,Street Cleansing,Agency Staff,PROJECT MANAGEMENT SUPPORT,26/04/2022,REDACTED INVOICE NUMBER,158245,930.29,Revenue,4575,Sewell Staffing Limited T/A Sector Recruitme,CM15 0AU,0
Director Of Environment,Street Services,Street Cleansing,Agency Staff,PROJECT MANAGEMENT SUPPORT,26/04/2022,REDACTED INVOICE NUMBER,158244,915.55,Revenue,4575,Sewell Staffing Limited T/A Sector Recruitme,CM15 0AU,0
Director Of Environment,Street Services,Street Cleansing,Agency Staff,PROJECT MANAGEMENT SUPPORT,26/04/2022,REDACTED INVOICE NUMBER,158530,841.85,Revenue,4575,Sewell Staffing Limited T/A Sector Recruitme,CM15 0AU,0
Director Of Environment,Street Services,Street Cleansing,Agency Staff,PROJECT MANAGEMENT SUPPORT,26/04/2022,REDACTED INVOICE NUMBER,158248,679.01,Revenue,4575,Sewell Staffing Limited T/A Sector Recruitme,CM15 0AU,0
Director Of Environment,Waste Management,Waste Collection Support,Agency Staff,PROJECT MANAGEMENT SUPPORT,26/04/2022,REDACTED INVOICE NUMBER,158239,-74.37,Revenue,4575,Sewell Staffing Limited T/A Sector Recruitme,CM15 0AU,0
Director Of Environment,Waste Management,Waste Collection Support,Agency Staff,PROJECT MANAGEMENT SUPPORT,26/04/2022,REDACTED INVOICE NUMBER,158243,4756.22,Revenue,4575,Sewell Staffing Limited T/A Sector Recruitme,CM15 0AU,0
Director Of Environment,Waste Management,Waste Collection Support,Agency Staff,PROJECT MANAGEMENT SUPPORT,26/04/2022,REDACTED INVOICE NUMBER,158531,5186.21,Revenue,4575,Sewell Staffing Limited T/A Sector Recruitme,CM15 0AU,0
Director Of Environment,Waste Management,Waste Collection Support,Agency Staff,PROJECT MANAGEMENT SUPPORT,26/04/2022,REDACTED INVOICE NUMBER,158235,5212.16,Revenue,4575,Sewell Staffing Limited T/A Sector Recruitme,CM15 0AU,0
Director Of Environment,Waste Management,Waste Collection Support,Agency Staff,PROJECT MANAGEMENT SUPPORT,26/04/2022,REDACTED INVOICE NUMBER,158234,5214.99,Revenue,4575,Sewell Staffing Limited T/A Sector Recruitme,CM15 0AU,0
Capex Director Of Environment,Other Environmental Services,Disabled Facilities Grant,Grants - General,DISABLED FACILITIES GRANT,12/04/2022,REDACTED INVOICE NUMBER,157908,10000,Capital,28482,Shenfield Construction Ltd,CM15 9AG,0
Capex Director Of Environment,Other Environmental Services,Disabled Facilities Grant,Grants - General,DISABLED FACILITIES GRANT,22/04/2022,REDACTED INVOICE NUMBER,158519,6102.6,Capital,28482,Shenfield Construction Ltd,CM15 9AG,0
Director Of Environment,"Communities, Health & Leisure",Health & Wellbeing,Contracted Services,WORKS,29/04/2022,REDACTED INVOICE NUMBER,159179,1000,Revenue,205166P,Snap,CM14 5WF,0
Director Corporate Resources,Human Resources,Human Resources,Subs To Professional Bodies,Solace Membership,22/04/2022,REDACTED INVOICE NUMBER,158742,350,Revenue,4648,Solace Group,WF8 1NT,0
Capex Director Of Environment,Corporate Services,King George'S Redevelopment,Contracted Services,FURNITURE - HARTSWOOD CAFE,08/04/2022,REDACTED INVOICE NUMBER,157273,15242,Capital,28440,Sports And Leisure Management,LE10 3EY,0
Director Housing & Enforcement,Homelessness,B&B Accommodation,B & B Charges (Homelessness),HOMELESSNESS PREVENTION,08/04/2022,REDACTED INVOICE NUMBER,158322,348,Revenue,28763,Stef Philips Ltd,N14 6BN,0
Director Housing & Enforcement,Homelessness,B&B Accommodation,B & B Charges (Homelessness),HOMELESSNESS PREVENTION,08/04/2022,REDACTED INVOICE NUMBER,158391,899,Revenue,28763,Stef Philips Ltd,N14 6BN,0
Director Housing & Enforcement,Homelessness,B&B Accommodation,B & B Charges (Homelessness),HOMELESSNESS PREVENTION,08/04/2022,REDACTED INVOICE NUMBER,158340,348,Revenue,28763,Stef Philips Ltd,N14 6BN,0
Director Housing & Enforcement,Homelessness,Homelessness Prevention,Rent Deposit Scheme,HOMELESSNESS PREVENTION,29/04/2022,REDACTED INVOICE NUMBER,158630,698.1,Revenue,28763,Stef Philips Ltd,N14 6BN,0
Director Housing & Enforcement,Homelessness,Homelessness Prevention,Rent Deposit Scheme,HOMELESSNESS PREVENTION,29/04/2022,REDACTED INVOICE NUMBER,158629,698.1,Revenue,28763,Stef Philips Ltd,N14 6BN,0
Director Of Environment,Vehicle Fleet Management,Vehicle Fleet Management,Vehicle Replacement Parts,VEHICLE PARTS,14/04/2022,REDACTED INVOICE NUMBER,158610,10,Revenue,4739,Steve Allan,RM3 0QS,0
Director Of Environment,Vehicle Fleet Management,Vehicle Fleet Management,Vehicle Replacement Parts,VEHICLE PARTS,14/04/2022,REDACTED INVOICE NUMBER,158609,53.76,Revenue,4739,Steve Allan,RM3 0QS,0
Director Of Environment,Vehicle Fleet Management,Vehicle Fleet Management,Vehicle Replacement Parts,VEHICLE PARTS,14/04/2022,REDACTED INVOICE NUMBER,158608,205.29,Revenue,4739,Steve Allan,RM3 0QS,0
Director Of Environment,Vehicle Fleet Management,Vehicle Fleet Management,Vehicle Replacement Parts,VEHICLE PARTS,14/04/2022,REDACTED INVOICE NUMBER,158607,196.63,Revenue,4739,Steve Allan,RM3 0QS,0
Director Of Environment,Vehicle Fleet Management,Vehicle Fleet Management,Vehicle Replacement Parts,VEHICLE PARTS,14/04/2022,REDACTED INVOICE NUMBER,158606,56.46,Revenue,4739,Steve Allan,RM3 0QS,0
Director Of Environment,Vehicle Fleet Management,Vehicle Fleet Management,Vehicle Replacement Parts,VEHICLE PARTS,22/04/2022,REDACTED INVOICE NUMBER,158605,77.1,Revenue,4739,Steve Allan,RM3 0QS,0
Director Of Environment,Vehicle Fleet Management,Vehicle Fleet Management,Vehicle Replacement Parts,VEHICLE PARTS,22/04/2022,REDACTED INVOICE NUMBER,158604,156.5,Revenue,4739,Steve Allan,RM3 0QS,0
Director Of Environment,Vehicle Fleet Management,Vehicle Fleet Management,Vehicle Replacement Parts,VEHICLE PARTS,22/04/2022,REDACTED INVOICE NUMBER,158603,11.73,Revenue,4739,Steve Allan,RM3 0QS,0
Director Of Environment,Vehicle Fleet Management,Vehicle Fleet Management,Vehicle Replacement Parts,VEHICLE PARTS,22/04/2022,REDACTED INVOICE NUMBER,158600,12,Revenue,4739,Steve Allan,RM3 0QS,0
Director Of Environment,Vehicle Fleet Management,Vehicle Fleet Management,Vehicle Replacement Parts,VEHICLE PARTS,22/04/2022,REDACTED INVOICE NUMBER,158602,12,Revenue,4739,Steve Allan,RM3 0QS,0
Director Of Environment,Vehicle Fleet Management,Vehicle Fleet Management,Vehicle Replacement Parts,VEHICLE PARTS,26/04/2022,REDACTED INVOICE NUMBER,158611,10,Revenue,4739,Steve Allan,RM3 0QS,0
Director Corporate Resources,Asset Management,Asset Management,R&M Bldgs - General,PLUMBING WORKS. HUTTON POPLARS TOILETS,12/04/2022,REDACTED INVOICE NUMBER,158524,237.7,Revenue,4791,T Jones,CM13 1NS,0
Director Corporate Resources,Asset Management,Asset Management,R&M Bldgs - General,HUTTON POPLARS - TOILET REPAIR,29/04/2022,REDACTED INVOICE NUMBER,158724,65,Revenue,4791,T Jones,CM13 1NS,0
Director Corporate Resources,Asset Management,Asset Management,R&M Bldgs - General,PLUMBING WORKS - BISHOPS HALL,29/04/2022,REDACTED INVOICE NUMBER,158723,50,Revenue,4791,T Jones,CM13 1NS,0
Director Corporate Resources,Asset Management,Asset Management,R&M Bldgs - General,MAINTENANCE OF INTRUDER ALARMS. 22/23,26/04/2022,REDACTED INVOICE NUMBER,158807,2183,Revenue,28358,T R Fire And Security Ltd,CO12 5AH,0
Balance Sheet,Balance Sheet,Balance Sheet,Homes For Ukraine,HOMES FOR UKRAINE,29/04/2022,REDACTED INVOICE NUMBER,159270,400,Revenue,216911P,REDACTED PERSONAL DATA,REDACTED,0
Capex Director Of Housing,Housing - Hra,Asbestos,Enhancements,Domestic Refurbishment Survey,29/04/2022,REDACTED INVOICE NUMBER,158250,5084,Capital,27949,The Hazard Management & Environmental Service,PE28 9LJ,0
Capex Director Of Housing,Housing - Hra,Asbestos,Enhancements,Management Survey,29/04/2022,REDACTED INVOICE NUMBER,158221,378,Capital,27949,The Hazard Management & Environmental Service,PE28 9LJ,0
Hra Expenditure,Repairs And Maintenance,Planned Maintenance,Customer Surveys,Re-inspection Survey,29/04/2022,REDACTED INVOICE NUMBER,158247,4735,Revenue,27949,The Hazard Management & Environmental Service,PE28 9LJ,0
Hra Expenditure,Repairs And Maintenance,Responsive Repairs Management,R&M Bldgs - Asbestos,Management Survey),29/04/2022,REDACTED INVOICE NUMBER,158236,200,Revenue,27949,The Hazard Management & Environmental Service,PE28 9LJ,0
Hra Expenditure,Repairs And Maintenance,Responsive Void Repairs,R&M Bldgs - Asbestos,HAZARD MANAGEMENT,29/04/2022,REDACTED INVOICE NUMBER,158246,554,Revenue,27949,The Hazard Management & Environmental Service,PE28 9LJ,0
Director Of Planning & Economy,Economic Development Total,Economic Development,Other Fees & Service,PASTRIES / TASTERS,05/04/2022,REDACTED INVOICE NUMBER,158336,1110,Revenue,196664P,The Larder Ltd,CM14 4BA,0
Director Of Planning & Economy,Planning Development Managemt,Planning Development Managemt,Agency Staff,PROJECT MANAGEMENT SUPPORT,29/04/2022,REDACTED INVOICE NUMBER,158195,1278,Revenue,4890,The Oyster Partnership,SW1Y 4QX,0
Director Of Planning & Economy,Planning Development Managemt,Planning Development Managemt,Agency Staff,PROJECT MANAGEMENT SUPPORT,29/04/2022,REDACTED INVOICE NUMBER,158196,1587.45,Revenue,4890,The Oyster Partnership,SW1Y 4QX,0
Director Of Planning & Economy,Planning Development Managemt,Planning Development Managemt,Agency Staff,PROJECT MANAGEMENT SUPPORT,29/04/2022,REDACTED INVOICE NUMBER,158198,1623.08,Revenue,4890,The Oyster Partnership,SW1Y 4QX,0
Director Of Planning & Economy,Planning Development Managemt,Planning Development Managemt,Agency Staff,PROJECT MANAGEMENT SUPPORT,29/04/2022,REDACTED INVOICE NUMBER,158197,1516.2,Revenue,4890,The Oyster Partnership,SW1Y 4QX,0
Director Of Planning & Economy,Planning Development Managemt,Planning Development Managemt,Agency Staff,PROJECT MANAGEMENT SUPPORT,29/04/2022,REDACTED INVOICE NUMBER,158199,1881,Revenue,4890,The Oyster Partnership,SW1Y 4QX,0
Director Of Planning & Economy,Planning Policy Total,Planning Policy,Project Management Support,PROJECT MANAGEMENT SUPPORT,29/04/2022,REDACTED INVOICE NUMBER,158194,2775,Revenue,4890,The Oyster Partnership,SW1Y 4QX,0
Director Of Planning & Economy,Planning Policy Total,Planning Policy,Contracted Services,Local Plan,26/04/2022,REDACTED INVOICE NUMBER,158057,38627.7,Revenue,28488,The Planning Inspectorate,BS1 6PN,0
Hra Expenditure,Supervision And Management,Rent Collection & Recovery,Other Professional Fees,NTQ,08/04/2022,REDACTED INVOICE NUMBER,158329,40,Revenue,4346,The Public Trustee,WC2B 6EX,0
Hra Expenditure,Supervision And Management,Rent Collection & Recovery,Other Professional Fees,NTQ,12/04/2022,REDACTED INVOICE NUMBER,158445,40,Revenue,4346,The Public Trustee,WC2B 6EX,0
Director Of Planning & Economy,Economic Development Total,Economic Development,Other Fees & Service,MOTHERS DAY EVENT,08/04/2022,REDACTED INVOICE NUMBER,157925,2041.67,Revenue,24588,The Shenfield Wine Company,CM15 8NB,0
Balance Sheet,Balance Sheet,Balance Sheet,Agency - Active Brentwood,REFRESHMENTS,05/04/2022,REDACTED INVOICE NUMBER,158328,28.5,Revenue,198748P,The Steaming Mug Limited,SS6 7EW,0
Director Of Planning & Economy,Economic Development Total,Economic Development,Other Fees & Service,BANNER,12/04/2022,REDACTED INVOICE NUMBER,157791,126,Revenue,25788,The Styleworks,CM13 1XG,0
Director Of Planning & Economy,Economic Development Total,Economic Development,Other Fees & Service,Banners,14/04/2022,REDACTED INVOICE NUMBER,158627,222,Revenue,25788,The Styleworks,CM13 1XG,0
Director Of Environment,Env Health & Licensing Admin,Env Health & Licensing Admin,Contracted Services,COVID ENFORCEMENT - OCT'21 - MAR'22,26/04/2022,REDACTED INVOICE NUMBER,158817,8352,Revenue,4931,Thurrock Borough Council,RM17 6LT,0
Director Corporate Resources,Corporate Management,Corporate Management Costs,Treasury - Brokerage Fees Gen,Brokerage,05/04/2022,REDACTED INVOICE NUMBER,158212,4575.34,Revenue,4975,Tradition (Uk) Limited,EC3A 7QX,0
Hra Expenditure,Supervision And Management,Tenant Participation,Miscellaneous Expenses,TAXI CHARGES,22/04/2022,REDACTED INVOICE NUMBER,158592,12.4,Revenue,4984,Treble Twenty Cars + Couriers Ltd,CM14 4LF,0
Hra Expenditure,Special Services,Sheltered Welfare Services,Licences - T.V.,TV LICENSES - QUENNELL WAY,26/04/2022,REDACTED INVOICE NUMBER,154845,90,Revenue,4995,Tv Licensing,DL98 1TL,0
Director Housing & Enforcement,Homelessness,Homelessness Prevention,Rent Deposit Scheme,RENT ADVANCE,22/04/2022,REDACTED INVOICE NUMBER,158626,3820,Revenue,204248P,REDACTED PERSONAL DATA,REDACTED,0
Director Of Environment,Vehicle Fleet Management,Vehicle Fleet Management,Vehicle - Tyres,TYRE CONTRACT,29/04/2022,REDACTED INVOICE NUMBER,158109,4766.8,Revenue,5026,Vaculug Technologies Ltd,NG31 8HE,0
Director Housing & Enforcement,Homelessness,Homelessness Prevention,Rent Deposit Scheme,HOMELESSNESS PREVENTION,29/04/2022,REDACTED INVOICE NUMBER,159195,1148,Revenue,205168P,Via Properties Ltd,.,0
Director Of Planning & Economy,Economic Development Total,Economic Development,Other Fees & Service,SOCIAL MEDIA MANAGEMENT SERVICES,22/04/2022,REDACTED INVOICE NUMBER,158451,750,Revenue,28939,Villene Hyam,CM14 4PT,0
Director Of Planning & Economy,Planning Development Managemt,Planning Development Managemt,Agency Staff,PROJECT MANAGEMENT SUPPORT,26/04/2022,REDACTED INVOICE NUMBER,158616,1233.75,Revenue,25948,Vivid Resourcing Limited,EC1V 4QJ,0
Director Of Planning & Economy,Planning Development Managemt,Planning Development Managemt,Agency Staff,PROJECT MANAGEMENT SUPPORT,26/04/2022,REDACTED INVOICE NUMBER,158617,1410,Revenue,25948,Vivid Resourcing Limited,EC1V 4QJ,0
Balance Sheet,Balance Sheet,Balance Sheet,Fuel Stores,DIESEL,29/04/2022,REDACTED INVOICE NUMBER,158333,22711.44,Revenue,25187,Wessex Petroleum Ltd T/A Wp Group,SO15 2BE,0
Director Of Environment,Street Services,Street Cleansing,Sub-Contractors,Recover bodyshell,26/04/2022,REDACTED INVOICE NUMBER,158857,250,Revenue,5104,Whitehouse Recovery,CM14 5RP,0
Director Of Environment,Street Services,Street Cleansing,Sub-Contractors,RECOVER BURNT OUT VAN,26/04/2022,REDACTED INVOICE NUMBER,158854,250,Revenue,5104,Whitehouse Recovery,CM14 5RP,0
Director Of Environment,Street Services,Street Cleansing,Sub-Contractors,Recover dumped truck body,26/04/2022,REDACTED INVOICE NUMBER,158858,150,Revenue,5104,Whitehouse Recovery,CM14 5RP,0
Director Of Environment,Street Services,Street Cleansing,Sub-Contractors,REMOVE GUTTEd CHASSIS,26/04/2022,REDACTED INVOICE NUMBER,158856,400,Revenue,5104,Whitehouse Recovery,CM14 5RP,0
Director Of Environment,Vehicle Fleet Management,Vehicle Fleet Management,Vehicle R&M - External,Recover sweeper,26/04/2022,REDACTED INVOICE NUMBER,158855,70,Revenue,5104,Whitehouse Recovery,CM14 5RP,0
Director Corporate Resources,Asset Management,Asset Management,Gas,GAS SUPPLY,05/04/2022,REDACTED INVOICE NUMBER,158238,197.28,Revenue,5118,Willowbrook Primary School,.,0
Director Corporate Resources,Asset Management,Asset Management,R&M Bldgs - General,Premises Costs,05/04/2022,REDACTED INVOICE NUMBER,158240,1510.19,Revenue,5118,Willowbrook Primary School,.,0
Director Corporate Resources,Asset Management,Asset Management,R&M Bldgs - General,Supply of Electric,05/04/2022,REDACTED INVOICE NUMBER,158242,619.62,Revenue,5118,Willowbrook Primary School,.,0
Director Corporate Resources,Asset Management,Asset Management,Water,WATER SUPPLY,05/04/2022,REDACTED INVOICE NUMBER,158241,154.78,Revenue,5118,Willowbrook Primary School,.,0
Director Of Environment,Vehicle Fleet Management,Vehicle Fleet Management,Vehicle Replacement Parts,VEHICLE PARTS,26/04/2022,REDACTED INVOICE NUMBER,158636,430.15,Revenue,5142,Wright Parts,RM13 8NH,0
Director Digital & Customer En,Digital Servs & Transformation,Ict Services,Photocopier Charges,Service Agreement,29/04/2022,REDACTED INVOICE NUMBER,158581,57.48,Revenue,5149,Xerox (Uk) Ltd,UB8 1HS,0
Director Digital & Customer En,Digital Servs & Transformation,Ict Services,Photocopier Charges,Service Agreement,29/04/2022,REDACTED INVOICE NUMBER,158578,176.2,Revenue,5149,Xerox (Uk) Ltd,UB8 1HS,0
Director Digital & Customer En,Digital Servs & Transformation,Ict Services,Photocopier Charges,Service Agreement,29/04/2022,REDACTED INVOICE NUMBER,158583,289.95,Revenue,5149,Xerox (Uk) Ltd,UB8 1HS,0
Director Digital & Customer En,Digital Servs & Transformation,Ict Services,Photocopier Charges,Service Agreement,29/04/2022,REDACTED INVOICE NUMBER,158579,115.87,Revenue,5149,Xerox (Uk) Ltd,UB8 1HS,0
Director Digital & Customer En,Digital Servs & Transformation,Ict Services,Photocopier Charges,Service Agreement - 01/01/22 -,29/04/2022,REDACTED INVOICE NUMBER,158582,16.52,Revenue,5149,Xerox (Uk) Ltd,UB8 1HS,0
Director Digital & Customer En,Digital Servs & Transformation,Ict Services,Photocopier Charges,Rent for the period 01 apr 202,26/04/2022,REDACTED INVOICE NUMBER,159095,"1,550.16",Revenue,5150,Xerox Finance,UB8 1HS,0
Director Digital & Customer En,Digital Servs & Transformation,Ict Services,Photocopier Charges,Rent for the period 01 may 202,26/04/2022,REDACTED INVOICE NUMBER,159098,2155,Revenue,5150,Xerox Finance,UB8 1HS,0
